Workbook

Sheet Input
A1: Response_Surface_1.3.xlsm | I1: Author: Bo Svensmark, svensmark@plen.ku.dk, Analytical Chemistry,ECP, PLEN, University of Copenhagen 2024
A2: Table 1: | B2: Normalize? | C2: Yes | D2: Yes/No | I2: The sheet is protected. To unprotect all cells: Review -> Unprotect Sheet | AE2: =IF(AE31<>"",AE31,"") ->  | AM2: =IF(AM33<>"",AM33,"") ->  | AN2: =IF(AN33<>"",AN33,"") ->  | AO2: =IF(AO33<>"",AO33,"") ->  | AP2: =IF(AP33<>"",AP33,"") -> 
A3: Select (1/0) ? | C3: 2 | D3: 2 | E3: 2 | F3: 2 | G3: 2 | H3: 2 | I3: 2 | J3: 0 | K3: 0 | L3: 0 | M3: 0 | N3: 0 | O3: 0 | P3: 0 | Q3: 0 | R3: 0 | S3: 0 | T3: 0 | U3: 0 | V3: 0 | W3: 0 | X3: 0 | Y3: 0 | Z3: 0 | AA3: 0 | AB3: 0 | AC3: 0
B4: Relative areas | D4: =IF(D3>0,100*D29/$C$29,"") -> 100 | E4: 13.42114678 | F4: 1.44778332 | G4: 7.099574331 | H4: 35.45651118 | I4: 0.07262084692 | AA4: geometric mean, or ??? | AE4: 1) Copy results to Table 2 (the white cells surronded by yellow in cell C33:Z53)
A5: Run # | B5: Label | C5: Mean | D5: =IF(D33<>"",D33,"") -> Butyrolactone | E5: =IF(E33<>"",E33,"") -> Phenylethyl alcohol | F5: Ethyl hydrogen succinate | G5: Diethyl succinate | H5: Tyrosol | I5: Acetyl-1-tyrosol
A6: 1 | B6: =IF(C34="","",C34) -> QUE1101A | C6: =IF(C34<>"",AVERAGE(D6:Z6),"") -> 73.13810378 | D6: =IF(AND(D$3>0,$C34<>""),IF(D$30>0,IF($C$2="Yes",100*D34/D$30,D34),0),"") -> 82.57689118 | E6: 85.25683226 | F6: 100 | G6: 83.69648582 | H6: 87.2984134 | I6: 0 | AE6: 2) Write "Yes" or "No" in table 1 cell C2 to analyse normalized data (100 = max) or raw unnormalized data
A7: 2 | B7: =IF(C35="","",C35) -> QUE1102A | C7: 57.08800135 | D7: =IF(AND(D$3>0,$C35<>""),IF(D$30>0,IF($C$2="Yes",100*D35/D$30,D35),0),"") -> 81.61372521 | E7: 79.86624151 | F7: 35.56134484 | G7: 77.95165072 | H7: 67.53504582 | I7: 0
A8: 3 | B8: QUE1103B | C8: 55.1605821 | D8: =IF(AND(D$3>0,$C36<>""),IF(D$30>0,IF($C$2="Yes",100*D36/D$30,D36),0),"") -> 86.69663413 | E8: 92.71085835 | F8: 0 | G8: 90.43270762 | H8: 61.12329248 | I8: 0 | AE8: 3) In Table 1 row 3 white cells enter a 1 for compounds which should be selected for analysis - and 0 if you want to skip them
A9: 4 | B9: QUE1104B | C9: 51.04194391 | D9: =IF(AND(D$3>0,$C37<>""),IF(D$30>0,IF($C$2="Yes",100*D37/D$30,D37),0),"") -> 78.75011203 | E9: 87.48578964 | F9: 0 | G9: 82.22170916 | H9: 57.79405265 | I9: 0 | AF9: * 1 will be changed to 2 when the results of the analysis have been saved.
A10: 5 | B10: QUE1105C | C10: 52.59039646 | D10: =IF(AND(D$3>0,$C38<>""),IF(D$30>0,IF($C$2="Yes",100*D38/D$30,D38),0),"") -> 79.42609748 | E10: 86.60557924 | F10: 0 | G10: 82.57882129 | H10: 66.93188074 | I10: 0
A11: 6 | B11: QUE1106C | C11: 65.14187488 | D11: =IF(AND(D$3>0,$C39<>""),IF(D$30>0,IF($C$2="Yes",100*D39/D$30,D39),0),"") -> 80.98019301 | E11: 86.50952326 | F11: 0 | G11: 82.52824124 | H11: 74.11186698 | I11: 66.72142482 | AE11: 4) Go to the appropriate sheet for analysis and click on the Start button
A12: 7 | B12: QUE1107D | C12: 68.96895902 | D12: =IF(AND(D$3>0,$C40<>""),IF(D$30>0,IF($C$2="Yes",100*D40/D$30,D40),0),"") -> 81.51412724 | E12: 79.25441591 | F12: 0 | G12: 80.4487345 | H12: 72.59647647 | I12: 100
A13: 8 | B13: QUE1108D | C13: 64.30147662 | D13: =IF(AND(D$3>0,$C41<>""),IF(D$30>0,IF($C$2="Yes",100*D41/D$30,D41),0),"") -> 81.7817413 | E13: 87.49682555 | F13: 0 | G13: 80.40997491 | H13: 80.56448384 | I13: 55.55583411 | AE13: 5) Make the analysis and click Save and load next to continue - or click Save to just save the results
A14: 9 | B14: QUE1109E | C14: 66.45339874 | D14: =IF(AND(D$3>0,$C42<>""),IF(D$30>0,IF($C$2="Yes",100*D42/D$30,D42),0),"") -> 98.72039245 | E14: 100 | F14: 0 | G14: 100 | H14: 100 | I14: 0
A15: 10 | B15: QUE1110E | C15: 51.75862691 | D15: =IF(AND(D$3>0,$C43<>""),IF(D$30>0,IF($C$2="Yes",100*D43/D$30,D43),0),"") -> 100 | E15: 72.71506881 | F15: 0 | G15: 71.04911115 | H15: 66.78758148 | I15: 0
A16: 11 | D16: =IF(AND(D$3>0,$C44<>""),IF(D$30>0,IF($C$2="Yes",100*D44/D$30,D44),0),"") -> 
A17: 12 | D17: =IF(AND(D$3>0,$C45<>""),IF(D$30>0,IF($C$2="Yes",100*D45/D$30,D45),0),"") -> 
A18: 13 | D18: =IF(AND(D$3>0,$C46<>""),IF(D$30>0,IF($C$2="Yes",100*D46/D$30,D46),0),"") -> 
A19: 14 | D19: =IF(AND(D$3>0,$C47<>""),IF(D$30>0,IF($C$2="Yes",100*D47/D$30,D47),0),"") -> 
A20: 15 | D20: =IF(AND(D$3>0,$C48<>""),IF(D$30>0,IF($C$2="Yes",100*D48/D$30,D48),0),"") -> 
A21: 16 | D21: =IF(AND(D$3>0,$C49<>""),IF(D$30>0,IF($C$2="Yes",100*D49/D$30,D49),0),"") -> 
A22: 17 | D22: =IF(AND(D$3>0,$C50<>""),IF(D$30>0,IF($C$2="Yes",100*D50/D$30,D50),0),"") -> 
A23: 18 | D23: =IF(AND(D$3>0,$C51<>""),IF(D$30>0,IF($C$2="Yes",100*D51/D$30,D51),0),"") -> 
A24: 19 | D24: =IF(AND(D$3>0,$C52<>""),IF(D$30>0,IF($C$2="Yes",100*D52/D$30,D52),0),"") -> 
A25: 20 | D25: =IF(AND(D$3>0,$C53<>""),IF(D$30>0,IF($C$2="Yes",100*D53/D$30,D53),0),"") -> 
B26: If the Run # numbers do not match the label numbers please sort the input:
B28: N | D28: =COUNT(D35:D53) -> 9 | E28: =COUNT(E35:E53) -> 9 | F28: 9 | G28: 9 | H28: 9 | I28: 9 | J28: 0 | K28: 0 | L28: 0 | M28: 0 | N28: 0 | O28: 0 | P28: 0 | Q28: 0 | R28: 0 | S28: 0 | T28: 0 | U28: 0 | V28: 0 | W28: 0 | X28: 0 | Y28: 0 | Z28: 0
B29: Mean | C29: =MAX(D29:Z29) -> 5555081.96 | D29: =IF(D28*D3>0,AVERAGE(D34:D53),"") -> 5555081.96 | E29: =IF(E28*E3>0,AVERAGE(E34:E53),"") -> 745555.7038 | F29: 80425.55004 | G29: 394387.1729 | H29: 1969638.256 | I29: 4034.147566 | Z29: =IF(Z28*Z3>0,AVERAGE(Z34:Z53),"") -> 
B30: Max | C30: =MAX(D30:Z30) -> 6519590.781 | D30: =IF(D28>0,MAX(D34:D53),"") -> 6519590.781 | E30: =IF(E28>0,MAX(E34:E53),"") -> 869046.1801 | F30: 593277.9004 | G30: 474412.2469 | H30: 2680716.937 | I30: 18149.16913
B31: Min | C31: =MIN(D31:Z31) -> 0 | D31: =IF(D28>0,MIN(D34:D53),"") -> 5134185.044 | E31: =IF(E28>0,MIN(E34:E53),"") -> 631927.5278 | F31: 0 | G31: 337065.6846 | H31: 1549294.958 | I31: 0
A32: Table 2: | C32: Label | D32: 1 | E32: 2 | F32: 3 | G32: 4 | H32: 5 | I32: 6 | J32: 7 | K32: 8 | L32: 9 | M32: 10 | N32: 11 | O32: 12 | P32: 13 | Q32: 14 | R32: 15 | S32: 16 | T32: 17 | U32: 18 | V32: 19 | W32: 20 | X32: 21 | Y32: 22 | Z32: 23 | AA32: 24 | AB32: 25 | AC32: 26
A33: Analyte names | B33: Run#/analyte: | D33: Butyrolactone | E33: Phenylethyl alcohol | F33: Ethyl hydrogen succinate | G33: Diethyl succinate | H33: Tyrosol | I33: Acetyl-1-tyrosol
A34: in first row (40) | B34: 1 | C34: QUE1101A | D34: 5383675.385 | E34: 740921.244 | F34: 593277.9004 | G34: 397066.379 | H34: 2340223.354 | I34: 0
B35: 2 | C35: QUE1102A | D35: 5320880.904 | E35: 694074.521 | F35: 210977.6 | G35: 369812.1777 | H35: 1810423.412 | I35: 0
A36: Labels in colum C | B36: 3 | C36: QUE1103B | D36: 5652265.766 | E36: 805700.173 | F36: 0 | G36: 429023.8402 | H36: 1638542.454 | I36: 0
B37: 4 | C37: QUE1104B | D37: 5134185.044 | E37: 760291.913 | F37: 0 | G37: 390069.8579 | H37: 1549294.958 | I37: 0
A38: Data first cell: | B38: 5 | C38: QUE1105C | D38: 5178256.529 | E38: 752642.4781 | F38: 0 | G38: 391764.0416 | H38: 1794254.263 | I38: 0
A39: D41 | B39: 6 | C39: QUE1106C | D39: 5279577.198 | E39: 751807.7073 | F39: 0 | G39: 391524.0836 | H39: 1986729.371 | I39: 12109.38424
B40: 7 | C40: QUE1107D | D40: 5314387.525 | E40: 688757.474 | F40: 0 | G40: 381658.649 | H40: 1946106.04 | I40: 18149.16913
B41: 8 | C41: QUE1108D | D41: 5331834.866 | E41: 760387.8202 | F41: 0 | G41: 381474.7687 | H41: 2159705.764 | I41: 10082.92229
B42: 9 | C42: QUE1109E | D42: 6436165.605 | E42: 869046.1801 | F42: 0 | G42: 474412.2469 | H42: 2680716.937 | I42: 0
B43: 10 | C43: QUE1110E | D43: 6519590.781 | E43: 631927.5278 | F43: 0 | G43: 337065.6846 | H43: 1790386.009 | I43: 0
B44: 11
B45: 12
B46: 13
B47: 14
B48: 15
B49: 16
B50: 17
B51: 18
B52: 19
B53: 20

Sheet 2 factors
A1: =Input!A1 -> Response_Surface_1.3.xlsm | T1: =Input!$I$1 -> Author: Bo Svensmark, svensmark@plen.ku.dk, Analytical Chemistry,ECP, PLEN, University of Copenhagen 2024
T2: The sheet is protected. To unprotect all cells: Review -> Unprotect Sheet
B3: Table 1: Design parameters | F3: WHITE cells for user input | I3: Face centered design a = | L3: 1 | T3: 1) Enter Design parameters in Table 1 and 2
B4: a: | D4: 1 | F4: =IF(OR(D5<2,D5>6),"ERROR:","") ->  | I4: Rotatable design a = | L4: =4^(1/4) -> 1.414213562 | U4: Center is calcuated as the mean of High and Low | Z4: Run # | AA4: 1 | AB4: 2 | AC4: 1^2 | AD4: 2^2 | AE4: 12 | AF4: Block | AG4: Day
B5: No of centre points | D5: 2 | F5: =IF(OR(D5<2,D5>6),"No must be 2 - 6","1 to 6 center points") -> 1 to 6 center points | I5: Orthogonal design a = | L5: =SQRT((SQRT(4*(8+D5))-4)/2) -> 1.07808982 | T5: 2) Enter Run parameters and groups in Table 3 | Z5: 1 | AA5: =(C16-C$13) -> -50 | AB5: =(D16-D$13) -> -50 | AC5: =AA5^2 -> 2500 | AD5: =AB5^2 -> 2500 | AE5: =AA5*AB5 -> 2500 | AF5: =IF(D$6=1,0,IF(C42="",0,IF(CODE(UPPER(C42))>68,1,-1))) -> 0 | AG5: =IF(C42="",0,IF(CODE(UPPER(C42))>68,2,1)) -> 1
B6: Blocks: | D6: 1 | F6: 1 or 2 Blocks | T6: 3) Press Copy Table 3 to Runs to create a sheet for experiments to run | Z6: 2 | AA6: 50 | AB6: -50 | AC6: 2500 | AD6: 2500 | AE6: -2500 | AF6: =IF(D$6=1,0,IF(C43="",0,IF(CODE(UPPER(C43))>68,1,-1))) -> 0 | AG6: =IF(C43="",0,IF(CODE(UPPER(C43))>68,2,1)) -> 1
T7: 4) Run the experiments and enter results in Table 4 or in Sheet Input *) | Z7: 3 | AA7: -50 | AB7: 50 | AC7: 2500 | AD7: 2500 | AE7: -2500 | AF7: 0 | AG7: 1
B8: Table 2: | C8: Factor levels | E8: See T4 for instructions | T8: 5) Coefficients for the model can then be seen in Table 5 | Z8: 4 | AA8: 50 | AB8: 50 | AC8: 2500 | AD8: 2500 | AE8: 2500 | AF8: 0 | AG8: 1
B9: Factor: | C9: 1 | D9: 2 | T9: 6) Go to Table 6 to find the optimum settings | Z9: 5 | AA9: -50 | AB9: 0 | AC9: 2500 | AD9: 0 | AE9: 0 | AF9: 0 | AG9: 2
B10: Name | C10: C18e | D10: PSA | F10: Saved? | G10: Yes | Z10: 6 | AA10: 50 | AB10: 0 | AC10: 2500 | AD10: 0 | AE10: 0 | AF10: 0 | AG10: 2
B11: Unit | C11: mg | D11: mg | F11: Output # | G11: 8 | T11: *) For results in Sheet Input: | Z11: 7 | AA11: 0 | AB11: -50 | AC11: 0 | AD11: 2500 | AE11: 0 | AF11: 0 | AG11: 2
B12: Low | C12: 0 | D12: 0 | T12: 1) Follow the instructions in Sheet Input for the data | Z12: 8 | AA12: 0 | AB12: 50 | AC12: 0 | AD12: 2500 | AE12: 0 | AF12: 0 | AG12: 2
B13: Center | C13: =(C14+C12)/2 -> 50 | D13: =(D14+D12)/2 -> 50 | E13: Analyte: | F13: Rel.Area: | G13: 0.07262084692 | I13: Comment: | J13: first | T13: 2) Press the button Start to load data for the first dataset to analyze | Z13: 9 | AA13: 0 | AB13: 0 | AC13: 0 | AD13: 0 | AE13: 0 | AF13: 0 | AG13: 1
B14: High | C14: 100 | D14: 100 | E14: Acetyl-1-tyrosol | I14: =IF($J$29="Not updated","Please press Maximum or Minimum","") ->  | T14: 3) Press Save results or Save results and load next analyte | Z14: 10 | AA14: 0 | AB14: 0 | AC14: 0 | AD14: 0 | AE14: 0 | AF14: 0 | AG14: 1
B15: Run # | C15: =C10 -> C18e | D15: =D10 -> PSA | E15: Table 4: Responses | G15: Mean | H15: Residuals | I15: Table 5: Coefficients | K15: SE | L15: P | T15: 4) The optimizer will automatically find the maximum | Z15: 11 | AA15: =IF(C26="","",(C26-C$13)) ->  | AB15: =IF(C26="","",(D26-D$13)) ->  | AC15: =IF(AA15="","",AA15^2) ->  | AE15: =IF(AA15="","",AA15*AB15) ->  | AF15: 0 | AG15: 1
B16: 1 | C16: =C$12 -> 0 | D16: =D$12 -> 0 | E16: 0 | G16: =AVERAGE(E16:F16) -> 0 | H16: =IF(C16="","",G16-($J$16+(C16-$C$13)*($J$17+(C16-$C$13)*$J$19+(D16-$D$13)*$J$21)+(D16-$D$13)*($J$18+(D16-$D$13)*$J$20)+AF5*$J$22)) -> -12.16407058 | I16: Const | J16: =VLOOKUP($D5,$U$22:$AB$30,8,FALSE) -> 31.75389413 | K16: =VLOOKUP($D$5&"s",$U$22:$AB$31,8,FALSE) -> 20.99141867 | L16: =IF(K16=0,"",_xlfn.T.DIST.2T(ABS(J16/K16),COUNT($G$16:$G$29)-5-$D$6)) -> 0.2049005103 | T16: 5) If you want to find the Minimum press this button | Z16: 12 | AA16: =IF(C27="","",(C27-C$13)) ->  | AB16: =IF(C27="","",(D27-D$13)) ->  | AE16: =IF(AA16="","",AA16*AB16) ->  | AF16: 0 | AG16: 2
B17: 2 | C17: =C$14 -> 100 | D17: =D$12 -> 0 | E17: 0 | G17: 0 | H17: =IF(C17="","",G17-($J$16+(C17-$C$13)*($J$17+(C17-$C$13)*$J$19+(D17-$D$13)*$J$21)+(D17-$D$13)*($J$18+(D17-$D$13)*$J$20)+AF6*$J$22)) -> -34.40454552 | I17: 1 | J17: =VLOOKUP($D5,$U$22:$AB$31,7,FALSE)+J41 -> 0.2224047494 | K17: =VLOOKUP($D$5&"s",$U$22:$AB$31,7,FALSE) -> 0.2867973782 | L17: =IF(K17=0,"",_xlfn.T.DIST.2T(ABS(J17/K17),COUNT($G$16:$G$29)-5-$D$6)) -> 0.4813520804 | Z17: 13 | AA17: =IF(C28="","",(C28-C$13)) ->  | AB17: =IF(C28="","",(D28-D$13)) ->  | AE17: =IF(AA17="","",AA17*AB17) ->  | AF17: 0 | AG17: 2
B18: 3 | C18: =C$12 -> 0 | D18: =D$14 -> 100 | E18: 0 | G18: 0 | H18: 2.650651386 | I18: 2 | J18: =VLOOKUP($D5,$U$22:$AB$31,6,FALSE) -> -0.1481472196 | K18: =VLOOKUP($D$5&"s",$U$22:$AB$31,6,FALSE) -> 0.2867973782 | L18: 0.6327108241 | T18: Blocking: See instructions starting in cell AB43 | Z18: 14 | AA18: =IF(C29="","",(C29-C$13)) ->  | AB18: =IF(C29="","",(D29-D$13)) ->  | AE18: =IF(AA18="","",AA18*AB18) ->  | AF18: 0 | AG18: 2
B19: 4 | C19: =C$14 -> 100 | D19: =D$14 -> 100 | E19: 0 | G19: 0 | H19: -19.58982355 | I19: 1^2 | J19: =VLOOKUP($D5,$U$22:$AB$31,5,FALSE) -> -0.01205883034 | K19: =VLOOKUP($D$5&"s",$U$22:$AB$31,5,FALSE) -> 0.009197978818 | L19: 0.2600452603
B20: 5 | C20: =AE22 -> 0 | D20: =D$13 -> 50 | E20: 0 | G20: 0 | H20: 9.513419193 | I20: 2^2 | J20: =VLOOKUP($D5,$U$22:$AB$31,4,FALSE) -> 0.005708051516 | K20: =VLOOKUP($D$5&"s",$U$22:$AB$31,4,FALSE) -> 0.009197978818 | L20: 0.5684881921 | V20: Regression coefficients: | AD20: Center | AE20: =C13 -> 50 | AF20: =D13 -> 50
B21: 6 | C21: =AE23 -> 100 | D21: =D$13 -> 50 | E21: 66.72142482 | G21: 66.72142482 | H21: 53.99436907 | I21: 12 | J21: =VLOOKUP($D5,$U$22:$AB$31,3,FALSE) -> -6.867849594e-19 | K21: =VLOOKUP($D$5&"s",$U$22:$AB$31,3,FALSE) -> 0.007025072362 | L21: 1 | U21: Nc | V21: Block | W21: 12 | X21: 2^2 | Y21: 1^2 | Z21: 2 | AA21: 1 | AB21: Const | AD21: Range/2 | AE21: =(C14-C12)/2 -> 50 | AF21: =(D14-D12)/2 -> 50
B22: 7 | C22: =C$13 -> 50 | D22: =AF22 -> 0 | E22: 100 | G22: 100 | H22: 46.5686161 | I22: Block | J22: =VLOOKUP($D5,$U$22:$AB$31,2,FALSE) -> 0 | K22: =VLOOKUP($D$5&"s",$U$22:$AB$31,2,FALSE) -> 0 | U22: 2 | V22: =LINEST(G16:G25,AA5:AF14,TRUE,TRUE) -> 0 | W22: -6.867849594e-19 | X22: 0.005708051516 | Y22: -0.01205883034 | Z22: -0.1481472196 | AA22: 0.2224047494 | AB22: 31.75389413 | AD22: Axial - | AE22: =AE$20-$D$4*AE21 -> 0 | AF22: =AF$20-$D$4*AF21 -> 0
B23: 8 | C23: =C$13 -> 50 | D23: =AF23 -> 100 | E23: 55.55583411 | G23: 55.55583411 | H23: 16.93917217 | U23: 2s | V23: 0 | W23: 0.007025072362 | X23: 0.009197978818 | Y23: 0.009197978818 | Z23: 0.2867973782 | AA23: 0.2867973782 | AB23: 20.99141867 | AD23: Axial + | AE23: =AE$20+$D$4*AE21 -> 100 | AF23: =AF$20+$D$4*AF21 -> 100
B24: 9 | C24: =C$13 -> 50 | D24: =D$13 -> 50 | E24: 0 | G24: 0 | H24: -31.75389413 | U24: 3 | V24: =IF(AA15="","",LINEST(G16:G26,AA5:AF15,TRUE,TRUE)) -> 
B25: 10 | C25: =C$13 -> 50 | D25: =D$13 -> 50 | E25: 0 | G25: 0 | H25: -31.75389413 | I25: Table 6: Optimization and estimation | U25: 3s | AE25: Day
B26: 11 | C26: =IF($D$5>2,C13,"") ->  | D26: =IF($D$5>2,AF$20,"") ->  | G26: =IF(E26="","",AVERAGE(E26:F26)) ->  | I26: Factor | J26: Name | U26: 4 | V26: =IF(AA16="","",LINEST(G16:G27,AA5:AF16,TRUE,TRUE)) ->  | AD26: Run # | AE26: 1 | AF26: 2
B27: 12 | C27: =IF($D$5>3,C13,"") ->  | D27: =IF($D$5>3,AF$20,"") ->  | G27: =IF(E27="","",AVERAGE(E27:F27)) ->  | I27: 1 | J27: =C10 -> C18e | K27: 59.22165513 | L27: =C11 -> mg | U27: 4s | AD27: 1 | AE27: =IF(AG5=2,NA(),B16) -> 1 | AF27: =IF(AG5=2,B16,NA()) -> 
B28: 13 | C28: =IF($D$5>4,C13,"") ->  | D28: =IF($D$5>4,AF$20,"") ->  | I28: 2 | J28: =D10 -> PSA | K28: 0 | L28: =D11 -> mg | U28: 5 | V28: =IF(AA17="","",LINEST(G16:G28,AA5:AF17,TRUE,TRUE)) ->  | AD28: 2 | AE28: =IF(AG6=2,NA(),B17) -> 2 | AF28: =IF(AG6=2,B17,NA()) -> 
B29: 14 | C29: =IF($D$5>5,C13,"") ->  | D29: =IF($D$5>5,AF$20,"") ->  | I29: Response | J29: =Z56 -> Max | K29: =$J$16+($K27-$C$13)*($J$17+($K27-$C$13)*$J$19+(K$28-$D$13)*$J$21)+(K$28-$D$13)*($J$18+(K$28-$D$13)*$J$20) -> 54.45685385 | U29: 5s | AD29: 3 | AE29: 3
U30: 6 | V30: =IF(AA18="","",LINEST(G16:G29,AA5:AF18,TRUE,TRUE)) ->  | AD30: 4 | AE30: 4
U31: 6s | AD31: 5 | AF31: 5
AD32: 6 | AF32: 6
P33: Press the buttons to find the factor levels for Max or Min response | U33: Graph F1 & F2 | Y33: F1 | AD33: 7 | AF33: 7
B34: Table 3: Experiments | G34: Comments to the design: | P34: - or enter values for levels in the white cells in Table 5 | W34: =AE$20-1*$D$4*AE$21 -> 0 | X34: =AE$20-0.5*$D$4*AE$21 -> 25 | Y34: =AE$20 -> 50 | Z34: =AE$20+0.5*$D$4*AE$21 -> 75 | AA34: =AE$20+1*$D$4*AE$21 -> 100 | AD34: 8 | AF34: 8
B35: Date: | C35: 2024-09-11 | V35: =AF$20-1*$D$4*AF$21 -> 0 | W35: =$J$16+(W$34-$C$13)*($J$17+(W$34-$C$13)*$J$19+($V35-$D$13)*$J$21)+($V35-$D$13)*($J$18+($V35-$D$13)*$J$20) -> 12.16407058 | X35: 40.3344962 | Y35: 53.4313839 | Z35: 51.45473367 | AA35: 34.40454552 | AD35: 9 | AE35: 9
B36: Group: | C36: Bo | P36: OBS: Optimize Max and Min are limited to values in the design | V36: =AF$20-0.5*$D$4*AF$21 -> 25 | W36: -2.242206504 | X36: 25.92821912 | Y36: 39.02510682 | Z36: 37.04845659 | AA36: 19.99826843 | AD36: 10 | AE36: 10
B37: Method: | C37: TST | U37: F2 | V37: =AF$20 -> 50 | W37: -9.513419193 | X37: 18.65700643 | Y37: 31.75389413 | Z37: 29.7772439 | AA37: 12.72705575 | AD37: 11 | AE37: =IF(G26="",NA(),IF(AG15=2,NA(),B26)) ->  | AF37: =IF(G26="",NA(),IF(AG15=2,B26,NA())) -> 
B38: Design no: | C38: 1 | P38: Optimizer: | V38: =AF$20+0.5*$D$4*AF$21 -> 75 | W38: -9.649567487 | X38: 18.52085814 | Y38: 31.61774584 | Z38: 29.64109561 | AA38: 12.59090745 | AD38: 12 | AE38: =IF(G27="",NA(),IF(AG16=2,NA(),B27)) ->  | AF38: =IF(G27="",NA(),IF(AG16=2,B27,NA())) -> 
B39: Free text: | P39: The blue curve shows the effect | V39: =AF$20+1*$D$4*AF$21 -> 100 | W39: -2.650651386 | X39: 25.51977424 | Y39: 38.61666194 | Z39: 36.64001171 | AA39: 19.58982355 | AD39: 13
B40: Design: | C40: 2 factors | P40: of changing F2 when F1 is held | AD40: 14
B41: Run # | C41: Group | D41: Label | E41: =C10 -> C18e | F41: =D10 -> PSA | G41: Constant factors and comments | P41: at the position marked by the | U41: Factor | V41: 1 | W41: Factor | X41: 2 | Y41: Data for Optimizer
B42: =IF($C$16="","",$B$16) -> 1 | C42: A | D42: =IF(OR(B42="",C42=""),"",$C$37&TEXT(C$38,"0")&"1"&TEXT(B42,"00")&C42) -> TST1101A | E42: =C$16 -> 0 | F42: =D$16 -> 0 | U42: =AE$20-1*$D$4*AE$21 -> 0 | V42: =$J$16+($U42-$C$13)*($J$17+($U42-$C$13)*$J$19+(K$28-$D$13)*$J$21)+(K$28-$D$13)*($J$18+(K$28-$D$13)*$J$20) -> 12.16407058 | W42: =AF$20-1*$D$4*AF$21 -> 0 | X42: =$J$16+(K$27-$C$13)*($J$17+(K$27-$C$13)*$J$19+($W42-$D$13)*$J$21)+($W42-$D$13)*($J$18+($W42-$D$13)*$J$20) -> 54.45685385 | Y42: =MIN(0,MIN(V42:V52,X42:X52)) -> 0 | Z42: =MAX(V42:V52,X42:X52) -> 54.45685385
B43: =IF($C$17="","",$B$17) -> 2 | C43: A | D43: =IF(OR(B43="",C43=""),"",$C$37&TEXT(C$38,"0")&"1"&TEXT(B43,"00")&C43) -> TST1102A | E43: =C$17 -> 100 | F43: =D$17 -> 0 | P43: dotted red line - and vice versa | U43: =AE$20-0.8*$D$4*AE$21 -> 10 | V43: 25.24106538 | W43: =AF$20-0.8*$D$4*AF$21 -> 10 | X43: 47.83813529 | Y43: X | Z43: Y | AB43: Blocking design:
B44: =IF($C$18="","",$B$18) -> 3 | C44: A | D44: TST1103A | E44: =C$18 -> 0 | F44: =D$18 -> 100 | U44: =AE$20-0.6*$D$4*AE$21 -> 20 | V44: 35.90629411 | W44: =AF$20-0.6*$D$4*AF$21 -> 20 | X44: 42.36102703 | Y44: =K27 -> 59.22165513 | Z44: =$Y$42 -> 0 | AB44: All runs for group A, B, C and D will be run on Day 1 (Thursday)
B45: =IF($C$19="","",$B$19) -> 4 | C45: A | D45: TST1104A | E45: =C$19 -> 100 | F45: =D$19 -> 100 | U45: =AE$20-0.4*$D$4*AE$21 -> 30 | V45: 44.15975678 | W45: =AF$20-0.4*$D$4*AF$21 -> 30 | X45: 38.02552908 | Y45: =K27 -> 59.22165513 | Z45: =$Z$42 -> 54.45685385 | AB45: All runs for group E, F, G and H will be run on Day 2 (Friday)
B46: =IF($C$20="","",$B$20) -> 5 | C46: E | D46: TST1105E | E46: =C$20 -> 0 | F46: =D$20 -> 50 | U46: =AE$20-0.2*$D$4*AE$21 -> 40 | V46: 50.00145338 | W46: =AF$20-0.2*$D$4*AF$21 -> 40 | X46: 34.83164143 | Y46: =(K28-W42)*AE21/AF21+U42 -> 0 | Z46: =$Y$42 -> 0 | AB46: To block the design, Block 1 = Day 1 must contain:
B47: =IF($C$21="","",$B$21) -> 6 | C47: E | D47: TST1106E | E47: =C$21 -> 100 | F47: =D$21 -> 50 | P47: The position of the dotted lines | U47: =AE$20 -> 50 | V47: 53.4313839 | W47: =AF$20 -> 50 | X47: 32.77936408 | Y47: =Y46 -> 0 | Z47: =$Z$42 -> 54.45685385 | AC47: Corner points (Run 1-4) and 2 or 3 centre points
B48: =IF($C$22="","",$B$22) -> 7 | C48: E | D48: TST1107E | E48: =C$22 -> 50 | F48: =D$22 -> 0 | U48: =AE$20+0.2*$D$4*AE$21 -> 60 | V48: 54.44954836 | W48: =AF$20+0.2*$D$4*AF$21 -> 60 | X48: 31.86869704 | Y48: =W34 -> 0 | Z48: =$K$29 -> 54.45685385 | AB48: Block 2 = Day 2 must contain:
B49: =IF($C$23="","",$B$23) -> 8 | C49: E | D49: TST1108E | E49: =C$23 -> 50 | F49: =D$23 -> 100 | P49: are taken from Table 5, cells K24 and K25 | U49: =AE$20+0.4*$D$4*AE$21 -> 70 | V49: 53.05594675 | W49: =AF$20+0.4*$D$4*AF$21 -> 70 | X49: 32.09964029 | Y49: =AA34 -> 100 | Z49: =$K$29 -> 54.45685385 | AC49: Star points (Run 5-8) and 2 or 3 centre points
B50: =IF($C$24="","",$B$24) -> 9 | C50: A | D50: TST1109A | E50: =C$24 -> 50 | F50: =D$24 -> 50 | P50: which can be changed manually | U50: =AE$20+0.6*$D$4*AE$21 -> 80 | V50: 49.25057908 | W50: =AF$20+0.6*$D$4*AF$21 -> 80 | X50: 33.47219386
B51: =IF($C$25="","",$B$25) -> 10 | C51: A | D51: TST1110A | E51: =C$25 -> 50 | F51: =D$25 -> 50 | U51: =AE$20+0.8*$D$4*AE$21 -> 90 | V51: 43.03344533 | W51: =AF$20+0.8*$D$4*AF$21 -> 90 | X51: 35.98635772 | AC51: Centre points could be (1:1), 2:2 or 3:3
B52: =IF($C$26="","",$B$26) ->  | C52: A | E52: =C$26 ->  | F52: =D$26 ->  | U52: =AE$20+1*$D$4*AE$21 -> 100 | V52: 34.40454552 | W52: =AF$20+1*$D$4*AF$21 -> 100 | X52: 39.64213189 | AB52: Blocking analysis:
B53: =IF($C$27="","",$B$27) ->  | C53: E | E53: =C$27 ->  | F53: =D$27 ->  | U53: Min 1&2 | V53: =MIN(W35:AA39) -> -9.649567487 | AB53: In Table 1 set Blocks = 2
B54: =IF($C$28="","",$B$28) ->  | C54: E | E54: =C$28 ->  | F54: =D$28 ->  | U54: Max 1&2 | V54: =MAX(W35:AA39) -> 53.4313839 | Y54: Target | Z54: Max | AB54: If P(Block) in Table 5 is > 0.05 and/or the residuals in the graph are
B55: =IF($C$29="","",$B$29) ->  | C55: E | E55: =C$29 ->  | F55: =D$29 ->  | P55: If you change something, the optimization may be wrong, and two warnings is given: | Y55: IF… | Z55: =IF(SUM(J16:J22)<>Z57,_xlfn.TEXTSPLIT("-Not updated",,"-",FALSE),_xlfn.TEXTSPLIT("-"&Z54,,"-",FALSE)) ->  | AB55: randomly distributed, it is recommend to set Blocks = 1 in Table 1
Q56: Red text in cell I14 | Y56: Result | Z56: Max | AB56: When Blocks = 2 the effect of the blocks will be separated from the
Q57: The text "Not updated" in Table 6 | Y57: Checksum | Z57: 31.82180088 | AB57: other effects, but it should not be if the block effect is random noise.

Sheet 3 factors
A1: =Input!A1 -> Response_Surface_1.3.xlsm | N1: =Input!$I$1 -> Author: Bo Svensmark, svensmark@plen.ku.dk, Analytical Chemistry,ECP, PLEN, University of Copenhagen 2024
N2: The sheet is protected. To unprotect all cells: Review -> Unprotect Sheet
B3: Table 1: Design parameters | F3: WHITE cells for user input | I3: Face centered design a = | L3: 1
B4: a: | D4: 1.525 | I4: Rotatable design a = | L4: =8^(1/4) -> 1.681792831 | AA4: Table 2: Factor levels to run | AM4: 1) Enter Design parameters in Table 1 and 2
B5: No of centre points | D5: 4 | E5: =IF(OR(D5<2,D5>6),"ERROR:","") ->  | F5: =IF(OR(C5<2,C5>6),"No must be 2 - 6","2 to 6 center points") -> No must be 2 - 6 | I5: Orthogonal design a = | L5: =SQRT((SQRT(8*(14+D5))-8)/2) -> 1.414213562 | Z5: Run # | AA5: 1 | AB5: 2 | AC5: 3 | AD5: 1^2 | AE5: 2^2 | AF5: 3^2 | AG5: 12 | AH5: 13 | AI5: 23 | AJ5: Block | AK5: Day | AN5: Center is calcuated as the mean of High and Low
B6: Blocks: | D6: 2 | Z6: 1 | AA6: =(C16-C$13) -> -1 | AB6: =(D16-D$13) -> -1 | AC6: =(E16-E$13) -> -1 | AD6: =AA6^2 -> 1 | AE6: 1 | AF6: 1 | AG6: =AA6*AB6 -> 1 | AH6: =AA6*AC6 -> 1 | AI6: =AB6*AC6 -> 1 | AJ6: =IF(D$6=1,0,IF(C48="",0,IF(CODE(UPPER(C48))>68,1,-1))) -> -1 | AK6: =IF(C48="",0,IF(CODE(UPPER(C48))>68,2,1)) -> 1 | AM6: 2) Enter Run parameters and groups in Table 3
Z7: 2 | AA7: 1 | AB7: -1 | AC7: -1 | AD7: 1 | AE7: 1 | AF7: 1 | AG7: -1 | AH7: -1 | AI7: 1 | AJ7: -1 | AK7: =IF(C49="",0,IF(CODE(UPPER(C49))>68,2,1)) -> 1 | AM7: 3) Press Copy Table 3 to Runs to create a sheet for experiments to run
B8: Table 2: | C8: Factor levels | F8: See AL4 for instructions | Z8: 3 | AA8: -1 | AB8: 1 | AC8: -1 | AD8: 1 | AE8: 1 | AF8: 1 | AG8: -1 | AH8: 1 | AI8: -1 | AJ8: -1 | AK8: 1 | AM8: 4) Run the experiments and enter results in Table 4 or in Sheet Input *)
B9: Factor: | C9: 1 | D9: 2 | E9: 3 | Z9: 4 | AA9: 1 | AB9: 1 | AC9: -1 | AD9: 1 | AE9: 1 | AF9: 1 | AG9: 1 | AH9: -1 | AI9: -1 | AJ9: -1 | AK9: 1 | AM9: 5) Coefficients for the model can then be seen in Table 5
B10: Name | C10: Salt | D10: Temp | E10: Time | G10: Saved? | H10: Yes | Z10: 5 | AA10: -1 | AB10: -1 | AC10: 1 | AD10: 1 | AE10: 1 | AF10: 1 | AG10: 1 | AH10: -1 | AI10: -1 | AJ10: -1 | AK10: 1 | AM10: 6) Go to Table 6 to find the optimum settings
B11: Unit | C11: mg | D11: ml | E11: min | G11: Output # | H11: 1 | Z11: 6 | AA11: 1 | AB11: -1 | AC11: 1 | AD11: 1 | AE11: 1 | AF11: 1 | AG11: -1 | AH11: 1 | AI11: -1 | AJ11: -1 | AK11: 1
B12: Low | C12: -1 | D12: -1 | E12: -1 | Z12: 7 | AA12: -1 | AB12: 1 | AC12: 1 | AD12: 1 | AE12: 1 | AF12: 1 | AG12: -1 | AH12: -1 | AI12: 1 | AJ12: -1 | AK12: 1 | AM12: *) For results in Sheet Input:
B13: Center | C13: =(C14+C12)/2 -> 0 | D13: =(D14+D12)/2 -> 0 | E13: =(E14+E12)/2 -> 0 | F13: Analyte: | G13: Rel.Area: | H13: 100 | J13: Comment: | Z13: 8 | AA13: 1 | AB13: 1 | AC13: 1 | AD13: 1 | AE13: 1 | AF13: 1 | AG13: 1 | AH13: 1 | AI13: 1 | AJ13: -1 | AK13: 1 | AM13: 1) Follow the instructions in Sheet Input for the data
B14: High | C14: 1 | D14: 1 | E14: 1 | F14: 3 F test | J14: =IF($K$35="Not updated","Please press Maximum or Minimum","") -> Please press Maximum or Minimum | Z14: 9 | AA14: -1.525 | AB14: 0 | AC14: 0 | AD14: 2.325625 | AE14: 0 | AF14: 0 | AG14: 0 | AH14: 0 | AI14: 0 | AJ14: 1 | AK14: 2 | AM14: 2) Press the button Start to load data for the first dataset to analyze
B15: Run # | C15: =C10 -> Salt | D15: =D10 -> Temp | E15: =E10 -> Time | F15: Table 4: Responses | H15: Mean | I15: Residuals | J15: Table 5: Coefficients | L15: SE | M15: P | Z15: 10 | AA15: 1.525 | AB15: 0 | AC15: 0 | AD15: 2.325625 | AE15: 0 | AF15: 0 | AG15: 0 | AH15: 0 | AI15: 0 | AJ15: 1 | AK15: 2 | AM15: 3) Press Save results or Save results and load next analyte
B16: 1 | C16: =C$12 -> -1 | D16: =D$12 -> -1 | E16: =E$12 -> -1 | F16: 50.741 | H16: =IF(F16="","",AVERAGE(F16:G16)) -> 50.741 | I16: =IF(C16="","",H16-($K$16+(C16-$C$13)*($K$17+(C16-$C$13)*$K$20+(D16-$D$13)*$K$23+(E16-$E$13)*$K$24)+(D16-$D$13)*($K$18+(D16-$D$13)*$K$21+(E16-$E$13)*$K$25)+(E16-$E$13)*($K$19+(E16-$E$13)*$K$22)+AJ6*$K$26)) -> -0.9858970847 | J16: Const | K16: =VLOOKUP($D$5,$Z$29:$AK$38,12,FALSE) -> 55.64968785 | L16: =VLOOKUP($D$5&"s",$Z$29:$AK$38,12,FALSE) -> 2.027472318 | M16: =IF(L16=0,"",_xlfn.T.DIST.2T(ABS(K16/L16),COUNT($H$16:$H$35)-9-$D$6)) -> 2.186368679e-08 | Z16: 11 | AA16: 0 | AB16: -1.525 | AC16: 0 | AD16: 0 | AE16: 2.325625 | AF16: 0 | AG16: 0 | AH16: 0 | AI16: 0 | AJ16: 1 | AK16: 2 | AM16: 4) The optimizer will automatically find the maximum
B17: 2 | C17: =C$14 -> 1 | D17: =D$12 -> -1 | E17: =E$12 -> -1 | F17: 48.221 | H17: =IF(F17="","",AVERAGE(F17:G17)) -> 48.221 | I17: =IF(C17="","",H17-($K$16+(C17-$C$13)*($K$17+(C17-$C$13)*$K$20+(D17-$D$13)*$K$23+(E17-$E$13)*$K$24)+(D17-$D$13)*($K$18+(D17-$D$13)*$K$21+(E17-$E$13)*$K$25)+(E17-$E$13)*($K$19+(E17-$E$13)*$K$22)+AJ7*$K$26)) -> -0.6917759504 | J17: 1 | K17: =VLOOKUP($D$5,$Z$29:$AK$38,11,FALSE) -> -1.947060567 | L17: =VLOOKUP($D$5&"s",$Z$29:$AK$38,11,FALSE) -> 1.168441263 | M17: =IF(L17=0,"",_xlfn.T.DIST.2T(ABS(K17/L17),COUNT($H$16:$H$35)-9-$D$6)) -> 0.1395787164 | Z17: 12 | AA17: 0 | AB17: 1.525 | AC17: 0 | AD17: 0 | AE17: 2.325625 | AF17: 0 | AG17: 0 | AH17: 0 | AI17: 0 | AJ17: 1 | AK17: 2 | AM17: 5) If you want to find the Minimum press this button
B18: 3 | C18: =C$12 -> -1 | D18: =D$14 -> 1 | E18: =E$12 -> -1 | F18: 48.221 | H18: 48.221 | I18: -1.280018219 | J18: 2 | K18: =VLOOKUP($D$5,$Z$29:$AK$37,10,FALSE) -> 1.947060567 | L18: =VLOOKUP($D$5&"s",$Z$29:$AK$38,10,FALSE) -> 1.168441263 | M18: 0.1395787164 | Z18: 13 | AA18: 0 | AB18: 0 | AC18: -1.525 | AD18: 0 | AE18: 0 | AF18: 2.325625 | AG18: 0 | AH18: 0 | AI18: 0 | AJ18: 1 | AK18: 2
B19: 4 | C19: =C$14 -> 1 | D19: =D$14 -> 1 | E19: =E$12 -> -1 | F19: 50.741 | H19: 50.741 | I19: -0.9858970847 | J19: 3 | K19: =VLOOKUP($D$5,$Z$29:$AK$38,9,FALSE) -> -1.362942397 | L19: =VLOOKUP($D$5&"s",$Z$29:$AK$38,9,FALSE) -> 1.168441263 | M19: 0.281625628 | Z19: 14 | AA19: 0 | AB19: 0 | AC19: 1.525 | AD19: 0 | AE19: 0 | AF19: 2.325625 | AG19: 0 | AH19: 0 | AI19: 0 | AJ19: 1 | AK19: 2
B20: 5 | C20: =C$12 -> -1 | D20: =D$12 -> -1 | E20: =E$14 -> 1 | F20: 48.221 | H20: 48.221 | I20: -0.7800122907 | J20: 1^2 | K20: =VLOOKUP($D$5,$Z$29:$AK$37,8,FALSE) -> 0.2791668405 | L20: =VLOOKUP($D$5&"s",$Z$29:$AK$38,8,FALSE) -> 1.33270564 | M20: 0.8400442997 | Z20: 15 | AA20: 0 | AB20: 0 | AC20: 0 | AD20: =IF(AA20="","",AA20^2) -> 0 | AE20: 0 | AF20: 0 | AG20: =IF(AA20="","",AA20*AB20) -> 0 | AH20: =IF(AA20="","",AA20*AC20) -> 0 | AI20: =IF(AB20="","",AB20*AC20) -> 0 | AJ20: -1 | AK20: 1 | AM20: Blocking design:
B21: 6 | C21: =C$14 -> 1 | D21: =D$12 -> -1 | E21: =E$14 -> 1 | F21: 38.501 | H21: 38.501 | I21: -0.4858911564 | J21: 2^2 | K21: =VLOOKUP($D$5,$Z$29:$AK$38,7,FALSE) -> -0.8208331595 | L21: =VLOOKUP($D$5&"s",$Z$29:$AK$38,7,FALSE) -> 1.33270564 | M21: 0.5574389297 | Z21: 16 | AA21: 0 | AB21: 0 | AC21: 0 | AD21: 0 | AE21: 0 | AF21: 0 | AG21: 0 | AH21: 0 | AI21: 0 | AJ21: -1 | AK21: 1 | AM21: All runs for group A, B, C and D will be run on Day 1 (Thursday)
B22: 7 | C22: =C$12 -> -1 | D22: =D$14 -> 1 | E22: =E$14 -> 1 | F22: 52.901 | H22: 52.901 | I22: -1.074133425 | J22: 3^2 | K22: =VLOOKUP($D$5,$Z$29:$AK$38,6,FALSE) -> -0.2708331595 | L22: =VLOOKUP($D$5&"s",$Z$29:$AK$38,6,FALSE) -> 1.33270564 | M22: 0.8447437621 | Z22: 17 | AA22: =IF(C32="","",(C32-C$13)) -> 0 | AB22: 0 | AC22: 0 | AD22: 0 | AE22: 0 | AF22: 0 | AG22: 0 | AH22: 0 | AI22: 0 | AJ22: -1 | AK22: 1 | AM22: All runs for group E, F, G and H will be run on Day 2 (Friday)
B23: 8 | C23: =C$14 -> 1 | D23: =D$14 -> 1 | E23: =E$14 -> 1 | F23: 48.221 | H23: 48.221 | I23: -0.7800122907 | J23: 12 | K23: =VLOOKUP($D$5,$Z$29:$AK$38,5,FALSE) -> 1.26 | L23: =VLOOKUP($D$5&"s",$Z$29:$AK$38,5,FALSE) -> 1.469361347 | M23: 0.4195476284 | Z23: 18 | AA23: 0 | AB23: 0 | AC23: 0 | AD23: 0 | AE23: 0 | AF23: 0 | AG23: 0 | AH23: 0 | AI23: 0 | AJ23: 1 | AK23: 2 | AM23: To block the design, Block 1 = Day 1 must contain:
B24: 9 | C24: =AI$42 -> -1.525 | D24: =D$13 -> 0 | E24: =E$13 -> 0 | F24: 66.9058125 | H24: 66.9058125 | I24: 1.904386223 | J24: 13 | K24: =VLOOKUP($D$5,$Z$29:$AK$38,4,FALSE) -> -1.8 | L24: =VLOOKUP($D$5&"s",$Z$29:$AK$38,4,FALSE) -> 1.469361347 | M24: 0.2601845743 | Z24: 19 | AJ24: 1 | AK24: 2 | AN24: Corner points (Run 1-8) and 2 to 4 centre points
B25: 10 | C25: =AI$43 -> 1.525 | D25: =D$13 -> 0 | E25: =E$13 -> 0 | F25: 60.1958125 | H25: 60.1958125 | I25: 1.132920953 | J25: 23 | K25: =VLOOKUP($D$5,$Z$29:$AK$38,3,FALSE) -> 1.8 | L25: =VLOOKUP($D$5&"s",$Z$29:$AK$38,3,FALSE) -> 1.469361347 | M25: 0.2601845743 | Z25: 20 | AJ25: 1 | AK25: 2 | AM25: Block 2 = Day 2 must contain:
B26: 11 | C26: =C$13 -> 0 | D26: =AJ$42 -> -1.525 | E26: =E$13 -> 0 | F26: 57.637625 | H26: 57.637625 | I26: 1.132920953 | J26: Block | K26: =VLOOKUP($D5,$Z$29:$AK$38,2,FALSE) -> 5.733233681 | L26: =VLOOKUP($D$5&"s",$Z$29:$AK$38,2,FALSE) -> 1.007834034 | M26: 0.0007440210186 | AN26: Star points (Run 9-14) and 2 to 4 centre points
B27: 12 | C27: 0 | D27: =AJ$43 -> 1.525 | E27: =E$13 -> 0 | F27: 64.347625 | H27: 64.347625 | I27: 1.904386223 | AA27: Regression coefficients:
B28: 13 | C28: 0 | D28: =D$13 -> 0 | E28: =AK$42 -> -1.525 | F28: 64.62021875 | H28: 64.62021875 | I28: 1.788666433 | Z28: Nc | AA28: Block | AB28: 23 | AC28: 13 | AD28: 12 | AE28: 3^2 | AF28: 2^2 | AG28: 1^2 | AH28: 3 | AI28: 2 | AJ28: 1 | AK28: Const | AN28: Centre points could be (1:1), 2:2 , 3:3 or 2:4 or 4:2
B29: 14 | C29: 0 | D29: =D$13 -> 0 | E29: =AK$43 -> 1.525 | F29: 59.92321875 | H29: 59.92321875 | I29: 1.248640743 | Z29: 2 | AA29: =LINEST(H16:H31,AA6:AJ21,TRUE,TRUE) -> 6.57015625 | AB29: 1.8 | AC29: -1.8 | AD29: 1.26 | AE29: -1.35 | AF29: -1.9 | AG29: -0.8 | AH29: -1.362942397 | AI29: 1.947060567 | AJ29: -1.947060567 | AK29: 58.84115625 | AM29: Blocking analysis:
B30: 15 | C30: 0 | D30: =D$13 -> 0 | E30: =E$13 -> 0 | F30: 52.271 | H30: 52.271 | I30: =IF(C30="","",H30-($K$16+(C30-$C$13)*($K$17+(C30-$C$13)*$K$20+(D30-$D$13)*$K$23+(E30-$E$13)*$K$24)+(D30-$D$13)*($K$18+(D30-$D$13)*$K$21+(E30-$E$13)*$K$25)+(E30-$E$13)*($K$19+(E30-$E$13)*$K$22)+AJ20*$K$26)) -> 2.354545834 | J30: Table 6: Optimization and estimation | Z30: 2s | AA30: 0.1250848556 | AB30: 0.1711562589 | AC30: 0.1711562589 | AD30: 0.1711562589 | AE30: 0.1752663268 | AF30: 0.1752663268 | AG30: 0.1752663268 | AH30: 0.1361040535 | AI30: 0.1361040535 | AJ30: 0.1361040535 | AK30: 0.3263180574 | AM30: In Table 1 set Blocks = 2
B31: 16 | C31: 0 | D31: =D$13 -> 0 | E31: =E$13 -> 0 | F31: 52.271 | H31: 52.271 | I31: 2.354545834 | J31: Factor | K31: Name | Z31: 3 | AA31: =IF(AA22="","",LINEST(H16:H32,AA6:AJ22,TRUE,TRUE)) -> 6.57015625 | AB31: 1.8 | AC31: -1.8 | AD31: 1.26 | AE31: -1.35 | AF31: -1.9 | AG31: -0.8 | AH31: -1.362942397 | AI31: 1.947060567 | AJ31: -1.947060567 | AK31: 58.84115625 | AM31: If P(Block) in Table 5 is > 0.05 and/or the residuals in the graph are
B32: 17 | C32: =IF($D$5>2,C13,"") -> 0 | D32: =IF($D$5>2,D13,"") -> 0 | E32: =IF($D$5>2,E13,"") -> 0 | F32: 52.271 | H32: 52.271 | I32: 2.354545834 | J32: 1 | K32: =C10 -> Salt | L32: -1.512323509 | M32: =C11 -> mg | Z32: 3s | AA32: 0.1123713785 | AB32: 0.1562435731 | AC32: 0.1562435731 | AD32: 0.1562435731 | AE32: 0.1482631798 | AF32: 0.1482631798 | AG32: 0.1482631798 | AH32: 0.1242454338 | AI32: 0.1242454338 | AJ32: 0.1242454338 | AK32: 0.2511821401 | AM32: randomly distributed, it is recommend to set Blocks = 1 in Table 1
B33: 18 | C33: =IF($D$5>3,C13,"") -> 0 | D33: =IF($D$5>3,D13,"") -> 0 | E33: =IF($D$5>3,E13,"") -> 0 | F33: 52.271 | H33: 52.271 | I33: -9.111921528 | J33: 2 | K33: =D10 -> Temp | L33: 0.3038352051 | M33: =D11 -> ml | Z33: 4 | AA33: =IF(AA23="","",LINEST(H16:H33,AA6:AJ23,TRUE,TRUE)) -> 5.733233681 | AB33: 1.8 | AC33: -1.8 | AD33: 1.26 | AE33: -0.2708331595 | AF33: -0.8208331595 | AG33: 0.2791668405 | AH33: -1.362942397 | AI33: 1.947060567 | AJ33: -1.947060567 | AK33: 55.64968785 | AM33: When Blocks = 2 the effect of the blocks will be separated from the
B34: 19 | C34: =IF($D$5>4,C13,"") ->  | D34: =IF($D$5>4,D13,"") ->  | E34: =IF($D$5>4,E13,"") ->  | J34: 3 | K34: =E10 -> Time | L34: 0.6543294757 | M34: =E11 -> min | Z34: 4s | AA34: 1.007834034 | AB34: 1.469361347 | AC34: 1.469361347 | AD34: 1.469361347 | AE34: 1.33270564 | AF34: 1.33270564 | AG34: 1.33270564 | AH34: 1.168441263 | AI34: 1.168441263 | AJ34: 1.168441263 | AK34: 2.027472318 | AM34: other effects, but it should not be if the block effect is random noise.
B35: 20 | C35: =IF($D$5>5,C13,"") ->  | D35: =IF($D$5>5,D13,"") ->  | E35: =IF($D$5>5,E13,"") ->  | J35: Response | K35: =R67 -> Not updated | L35: =$K$16+($L32-$C$13)*($K$17+($L32-$C$13)*$K$20+(L$33-$D$13)*$K$23+(L$34-$E$13)*$K$24)+(L$33-$D$13)*($K$18+(L$33-$D$13)*$K$21+(L$34-$E$13)*$K$25)+(L$34-$E$13)*($K$19+(L$34-$E$13)*$K$22) -> 60.30089464 | Z35: 5 | AA35: =IF(AA24="","",LINEST(H16:H34,AA6:AJ24,TRUE,TRUE)) -> 
Q36: Press the buttons to find the factor levels for Max or Min response | Z36: 5s
Q37: - or enter values for the factors in the white cells in Table 5 | Z37: 6 | AA37: =IF(AA25="","",LINEST(H16:H35,AA6:AJ25,TRUE,TRUE)) -> 
Z38: 6s
Q39: OBS: Optimize Max and Min are limited to values in the design
B40: Table 3: Experiments | H40: Comments to the design: | Z40: Graph F1 & F2 | AD40: F1 | AH40: Center | AI40: =C13 -> 0 | AJ40: =D13 -> 0 | AK40: =E13 -> 0
B41: Date: | C41: 2024-09-11 | Q41: The contour and the optimizer plots shows the response with constant value from Table 5: | AB41: =AI$40-1*$D$4*AI$41 -> -1.525 | AC41: =AI$40-0.5*$D$4*AI$41 -> -0.7625 | AD41: =AI$40-0*$D$4*AI$41 -> 0 | AE41: =AI$40+0.5*$D$4*AI$41 -> 0.7625 | AF41: =AI$40+1*$D$4*AI$41 -> 1.525 | AH41: Range/2 | AI41: =(C14-C12)/2 -> 1 | AJ41: =(D14-D12)/2 -> 1 | AK41: =(E14-E12)/2 -> 1
B42: Group: | Q42: In the contour plot of F1 & 2, F3 has the value given in Table 5 | AA42: =AJ$40-1*$D$4*AJ$41 -> -1.525 | AB42: =$K$16+(AB$41-$C$13)*($K$17+(AB$41-$C$13)*$K$20+($AA42-$D$13)*$K$23+($L$34-$E$13)*$K$24)+($AA42-$D$13)*($K$18+($AA42-$D$13)*$K$21+($L$34-$E$13)*$K$25)+($L$34-$E$13)*($K$19+($L$34-$E$13)*$K$22) -> 56.31249281 | AC42: =$K$16+(AC$41-$C$13)*($K$17+(AC$41-$C$13)*$K$20+($AA42-$D$13)*$K$23+($L$34-$E$13)*$K$24)+($AA42-$D$13)*($K$18+($AA42-$D$13)*$K$21+($L$34-$E$13)*$K$25)+($L$34-$E$13)*($K$19+($L$34-$E$13)*$K$22) -> 51.97772013 | AD42: 47.96756615 | AE42: 44.28203086 | AF42: 40.92111426 | AH42: Axial - | AI42: =C$13-$D$4*AI41 -> -1.525 | AJ42: =D$13-$D$4*AJ41 -> -1.525 | AK42: =E$13-$D$4*AK41 -> -1.525
B43: Method: | C43: SH | Q43: In the optimizer plot, the curve for F1, F2 & F3 has the value given in Table 5 | AA43: =AJ$40-0.5*$D$4*AJ$41 -> -0.7625 | AB43: =$K$16+(AB$41-$C$13)*($K$17+(AB$41-$C$13)*$K$20+($AA43-$D$13)*$K$23+($L$34-$E$13)*$K$24)+($AA43-$D$13)*($K$18+($AA43-$D$13)*$K$21+($L$34-$E$13)*$K$25)+($L$34-$E$13)*($K$19+($L$34-$E$13)*$K$22) -> 58.66176253 | AC43: 55.05956173 | AD43: 51.78197962 | AE43: 48.82901621 | AF43: 46.20067148 | AH43: Axial + | AI43: =C$13+$D$4*AI41 -> 1.525 | AJ43: =D$13+$D$4*AJ41 -> 1.525 | AK43: =E$13+$D$4*AK41 -> 1.525
B44: Design no: | C44: 1 | Z44: F2 | AA44: =AJ$40-0*$D$4*AJ$41 -> 0 | AB44: 60.0565572 | AC44: 57.18692828 | AD44: 54.64191804 | AE44: 52.4215265 | AF44: 50.52575365
B45: Free text: | Q45: If you change something, the optimization may be wrong, and two warnings is given: | AA45: =AJ$40+0.5*$D$4*AJ$41 -> 0.7625 | AB45: 60.49687681 | AC45: 58.35981976 | AD45: 56.5473814 | AE45: 55.05956173 | AF45: 53.89636076 | AI45: Day
B46: Design: | C46: 3 factors | R46: Red text in cell J14 | AA46: =AJ$40+1*$D$4*AJ$41 -> 1.525 | AB46: 59.98272136 | AC46: 58.57823618 | AD46: 57.4983697 | AE46: 56.74312191 | AF46: 56.31249281 | AH46: Run # | AI46: 1 | AJ46: 2
B47: Run # | C47: Group | D47: Label | E47: =C10 -> Salt | F47: =D10 -> Temp | G47: =E10 -> Time | H47: Constant factors and comments | R47: The text "Not updated" in Table 6 | AH47: 1 | AI47: =IF(AK6=2,NA(),I16) -> -0.9858970847 | AJ47: =IF(AK6=1,NA(),I16) -> 
B48: =IF($C$16="","",$B$16) -> 1 | C48: A | D48: =IF(OR(B48="",C48=""),"",$C$43&TEXT(C$44,"0")&"1"&TEXT(B48,"00")&C48) -> SH1101A | E48: =C$16 -> -1 | F48: =D$16 -> -1 | G48: =E$16 -> -1 | Z48: Graph F2 & F3 | AD48: F3 | AH48: 2 | AI48: -0.6917759504
B49: =IF($C$17="","",$B$17) -> 2 | C49: A | D49: =IF(OR(B49="",C49=""),"",$C$43&TEXT(C$44,"0")&"1"&TEXT(B49,"00")&C49) -> SH1102A | E49: =C$17 -> 1 | F49: =D$17 -> -1 | G49: =E$17 -> -1 | AB49: =AK$40-1*$D$4*AK$41 -> -1.525 | AC49: =AK$40-0.5*$D$4*AK$41 -> -0.7625 | AD49: =AK$40-0*$D$4*AK$41 -> 0 | AE49: =AK$40+0.5*$D$4*AK$41 -> 0.7625 | AF49: =AK$40+1*$D$4*AK$41 -> 1.525 | AH49: 3 | AI49: -1.280018219
B50: =IF($C$18="","",$B$18) -> 3 | C50: A | D50: SH1103A | E50: =C$18 -> -1 | F50: =D$18 -> 1 | G50: =E$18 -> -1 | Q50: Factor: | R50: 1 | S50: Factor: | T50: 2 | U50: Factor: | V50: 3 | W50: Data for Optimizer | AA50: =AJ$40-1*$D$4*AJ$41 -> -1.525 | AB50: =$K$16+($L$32-$C$13)*($K$17+($L$32-$C$13)*$K$20+($AA50-$D$13)*$K$23+(AB$49-$E$13)*$K$24)+($AA50-$D$13)*($K$18+($AA50-$D$13)*$K$21+(AB$49-$E$13)*$K$25)+(AB$49-$E$13)*($K$19+(AB$49-$E$13)*$K$22) -> 58.74390195 | AC50: =$K$16+($L$32-$C$13)*($K$17+($L$32-$C$13)*$K$20+($AA50-$D$13)*$K$23+(AC$49-$E$13)*$K$24)+($AA50-$D$13)*($K$18+($AA50-$D$13)*$K$21+(AC$49-$E$13)*$K$25)+(AC$49-$E$13)*($K$19+(AC$49-$E$13)*$K$22) -> 58.15965216 | AD50: 57.26047419 | AE50: 56.04636804 | AF50: 54.5173337 | AH50: 4 | AI50: -0.9858970847
B51: =IF($C$19="","",$B$19) -> 4 | C51: A | D51: SH1104A | E51: =C$19 -> 1 | F51: =D$19 -> 1 | G51: =E$19 -> -1 | Q51: =AI$40-1*$D$4*AI$41 -> -1.525 | R51: =$K$16+($Q51-$C$13)*($K$17+($Q51-$C$13)*$K$20+(L$33-$D$13)*$K$23+(L$34-$E$13)*$K$24)+(L$33-$D$13)*($K$18+(L$33-$D$13)*$K$21+(L$34-$E$13)*$K$25)+(L$34-$E$13)*($K$19+(L$34-$E$13)*$K$22) -> 60.3464025 | S51: =AJ$40-1*$D$4*AJ$41 -> -1.525 | T51: =$K$16+(L$32-$C$13)*($K$17+(L$32-$C$13)*$K$20+($S51-$D$13)*$K$23+(L$34-$E$13)*$K$24)+($S51-$D$13)*($K$18+($S51-$D$13)*$K$21+(L$34-$E$13)*$K$25)+(L$34-$E$13)*($K$19+(L$34-$E$13)*$K$22) -> 56.2377741 | U51: =AK$40-1*$D$4*AK$41 -> -1.525 | V51: =$K$16+(L$32-$C$13)*($K$17+(L$32-$C$13)*$K$20+(L$33-$D$13)*$K$23+($U51-$E$13)*$K$24)+(L$33-$D$13)*($K$18+(L$33-$D$13)*$K$21+($U51-$E$13)*$K$25)+($U51-$E$13)*($K$19+($U51-$E$13)*$K$22) -> 55.63288044 | W51: =MIN(0,MIN(R51:R61,T51:T61,V51:V61)) -> 0 | X51: =MAX(R51:R61,T51:T61,V51:V61) -> 61.44661747 | AA51: =AJ$40-0.5*$D$4*AJ$41 -> -0.7625 | AB51: =$K$16+($L$32-$C$13)*($K$17+($L$32-$C$13)*$K$20+($AA51-$D$13)*$K$23+(AB$49-$E$13)*$K$24)+($AA51-$D$13)*($K$18+($AA51-$D$13)*$K$21+(AB$49-$E$13)*$K$25)+(AB$49-$E$13)*($K$19+(AB$49-$E$13)*$K$22) -> 58.11422091 | AC51: 58.57650237 | AD51: 58.72385565 | AE51: 58.55628075 | AF51: 58.07377766 | AH51: 5 | AI51: -0.7800122907
B52: =IF($C$20="","",$B$20) -> 5 | C52: A | D52: SH1105A | E52: =C$20 -> -1 | F52: =D$20 -> -1 | G52: =E$20 -> 1 | Q52: =AI$40-0.8*$D$4*AI$41 -> -1.22 | R52: =$K$16+($Q52-$C$13)*($K$17+($Q52-$C$13)*$K$20+(L$33-$D$13)*$K$23+(L$34-$E$13)*$K$24)+(L$33-$D$13)*($K$18+(L$33-$D$13)*$K$21+(L$34-$E$13)*$K$25)+(L$34-$E$13)*($K$19+(L$34-$E$13)*$K$22) -> 59.27636056 | S52: =AJ$40-0.8*$D$4*AJ$41 -> -1.22 | T52: =$K$16+(L$32-$C$13)*($K$17+(L$32-$C$13)*$K$20+($S52-$D$13)*$K$23+(L$34-$E$13)*$K$24)+($S52-$D$13)*($K$18+($S52-$D$13)*$K$21+(L$34-$E$13)*$K$25)+(L$34-$E$13)*($K$19+(L$34-$E$13)*$K$22) -> 57.29689057 | U52: =AK$40-0.8*$D$4*AK$41 -> -1.22 | V52: =$K$16+(L$32-$C$13)*($K$17+(L$32-$C$13)*$K$20+(L$33-$D$13)*$K$23+($U52-$E$13)*$K$24)+(L$33-$D$13)*($K$18+(L$33-$D$13)*$K$21+($U52-$E$13)*$K$25)+($U52-$E$13)*($K$19+($U52-$E$13)*$K$22) -> 56.44100244 | W52: X | X52: Y | Z52: F2 | AA52: =AJ$40-0*$D$4*AJ$41 -> 0 | AB52: 56.53006481 | AC52: 58.03887752 | AD52: 59.23276205 | AE52: 60.1117184 | AF52: 60.67574656 | AH52: 6 | AI52: -0.4858911564
B53: =IF($C$21="","",$B$21) -> 6 | C53: A | D53: SH1106A | E53: =C$21 -> 1 | F53: =D$21 -> -1 | G53: =E$21 -> 1 | Q53: =AI$40-0.6*$D$4*AI$41 -> -0.915 | R53: 58.2582576 | S53: =AJ$40-0.6*$D$4*AJ$41 -> -0.915 | T53: 58.20329104 | U53: =AK$40-0.6*$D$4*AK$41 -> -0.915 | V53: 57.19873592 | W53: =L32 -> -1.512323509 | X53: =$W$51 -> 0 | AA53: =AJ$40+0.5*$D$4*AJ$41 -> 0.7625 | AB53: 53.99143365 | AC53: 56.54677761 | AD53: 58.78719339 | AE53: 60.71268099 | AF53: 62.3232404 | AH53: 7 | AI53: -1.074133425
B54: =IF($C$22="","",$B$22) -> 7 | C54: A | D54: SH1107A | E54: =C$22 -> -1 | F54: =D$22 -> 1 | G54: =E$22 -> 1 | Q54: =AI$40-0.4*$D$4*AI$41 -> -0.61 | R54: 57.29209364 | S54: =AJ$40-0.4*$D$4*AJ$41 -> -0.61 | T54: 58.95697549 | U54: =AK$40-0.4*$D$4*AK$41 -> -0.61 | V54: 57.9060809 | W54: =L32 -> -1.512323509 | X54: =$X$51 -> 61.44661747 | AA54: =AJ$40+1*$D$4*AJ$41 -> 1.525 | AB54: 50.49832743 | AC54: 54.10020265 | AD54: 57.38714968 | AE54: 60.35916852 | AF54: 63.01625919 | AH54: 8 | AI54: -0.7800122907
B55: =IF($C$23="","",$B$23) -> 8 | C55: A | D55: SH1108A | E55: =C$23 -> 1 | F55: =D$23 -> 1 | G55: =E$23 -> 1 | Q55: =AI$40-0.2*$D$4*AI$41 -> -0.305 | R55: 56.37786867 | S55: =AJ$40-0.2*$D$4*AJ$41 -> -0.305 | T55: 59.55794394 | U55: =AK$40-0.2*$D$4*AK$41 -> -0.305 | V55: 58.56303737 | W55: =(L33-S51)*AI41/AJ41+Q51 -> 0.3038352051 | X55: =$W$51 -> 0 | AH55: 9 | AJ55: 1.904386223
B56: =IF($C$24="","",$B$24) -> 9 | C56: E | D56: SH1109E | E56: =C$24 -> -1.525 | F56: =D$24 -> 0 | G56: =E$24 -> 0 | Q56: =AI$40 -> 0 | R56: 55.51558269 | S56: =AJ$40 -> 0 | T56: 60.00619637 | U56: =AK$40 -> 0 | V56: 59.16960532 | W56: =W55 -> 0.3038352051 | X56: =$X$51 -> 61.44661747 | Z56: Graph F1 & F3 | AD56: F3 | AH56: 10 | AJ56: 1.132920953
B57: =IF($C$25="","",$B$25) -> 10 | C57: E | D57: SH1110E | E57: =C$25 -> 1.525 | F57: =D$25 -> 0 | G57: =E$25 -> 0 | Q57: =AI$40+0.2*$D$4*AI$41 -> 0.305 | R57: 54.7052357 | S57: =AJ$40+0.2*$D$4*AJ$41 -> 0.305 | T57: 60.3017328 | U57: =AK$40+0.2*$D$4*AK$41 -> 0.305 | V57: 59.72578477 | W57: =(L34-U51)*AI41/AK41+Q51 -> 0.6543294757 | X57: =$W$51 -> 0 | AB57: =AK$40-1*$D$4*AK$41 -> -1.525 | AC57: =AK$40-0.5*$D$4*AK$41 -> -0.7625 | AD57: =AK$40-0*$D$4*AK$41 -> 0 | AE57: =AK$40+0.5*$D$4*AK$41 -> 0.7625 | AF57: =AK$40+1*$D$4*AK$41 -> 1.525 | AH57: 11 | AJ57: 1.132920953
B58: =IF($C$26="","",$B$26) -> 11 | C58: E | D58: SH1111E | E58: =C$26 -> 0 | F58: =D$26 -> -1.525 | G58: =E$26 -> 0 | Q58: =AI$40+0.4*$D$4*AI$41 -> 0.61 | R58: 53.9468277 | S58: =AJ$40+0.4*$D$4*AJ$41 -> 0.61 | T58: 60.44455321 | U58: =AK$40+0.4*$D$4*AK$41 -> 0.61 | V58: 60.23157571 | W58: =W57 -> 0.6543294757 | X58: =$X$51 -> 61.44661747 | AA58: =AI$40-1*$D$4*AI$41 -> -1.525 | AB58: =$K$16+($AA58-$C$13)*($K$17+($AA58-$C$13)*$K$20+($L$33-$D$13)*$K$23+(AB$57-$E$13)*$K$24)+($L$33-$D$13)*($K$18+($L$33-$D$13)*$K$21+(AB$57-$E$13)*$K$25)+(AB$57-$E$13)*($K$19+(AB$57-$E$13)*$K$22) -> 55.62866105 | AC58: =$K$16+($AA58-$C$13)*($K$17+($AA58-$C$13)*$K$20+($L$33-$D$13)*$K$23+(AC$57-$E$13)*$K$24)+($L$33-$D$13)*($K$18+($L$33-$D$13)*$K$21+(AC$57-$E$13)*$K$25)+(AC$57-$E$13)*($K$19+(AC$57-$E$13)*$K$22) -> 57.57188607 | AD58: 59.2001829 | AE58: 60.51355155 | AF58: 61.51199202 | AH58: 12 | AJ58: 1.904386223
B59: =IF($C$27="","",$B$27) -> 12 | C59: E | D59: SH1112E | E59: =C$27 -> 0 | F59: =D$27 -> 1.525 | G59: =E$27 -> 0 | Q59: =AI$40+0.6*$D$4*AI$41 -> 0.915 | R59: 53.24035869 | S59: =AJ$40+0.6*$D$4*AJ$41 -> 0.915 | T59: 60.43465762 | U59: =AK$40+0.6*$D$4*AK$41 -> 0.915 | V59: 60.68697814 | W59: =AA58 -> -1.525 | X59: =$L$35 -> 60.30089464 | AA59: =AI$40-0.5*$D$4*AI$41 -> -0.7625 | AB59: =$K$16+($AA59-$C$13)*($K$17+($AA59-$C$13)*$K$20+($L$33-$D$13)*$K$23+(AB$57-$E$13)*$K$24)+($L$33-$D$13)*($K$18+($L$33-$D$13)*$K$21+(AB$57-$E$13)*$K$25)+(AB$57-$E$13)*($K$19+(AB$57-$E$13)*$K$22) -> 56.0420715 | AC59: 56.93876527 | AD59: 57.52053085 | AE59: 57.78736825 | AF59: 57.73927747 | AH59: 13 | AJ59: 1.788666433
B60: =IF($C$28="","",$B$28) -> 13 | C60: E | D60: SH1113E | E60: =C$28 -> 0 | F60: =D$28 -> 0 | G60: =E$28 -> -1.525 | Q60: =AI$40+0.8*$D$4*AI$41 -> 1.22 | R60: 52.58582867 | S60: =AJ$40+0.8*$D$4*AJ$41 -> 1.22 | T60: 60.27204602 | U60: =AK$40+0.8*$D$4*AK$41 -> 1.22 | V60: 61.09199206 | W60: =AA62 -> 1.525 | X60: =$L$35 -> 60.30089464 | Z60: F1 | AA60: =AI$40-0*$D$4*AI$41 -> 0 | AB60: 56.78010065 | AC60: 56.63026317 | AD60: 56.1654975 | AE60: 55.38580365 | AF60: 54.29118161 | AH60: 14 | AJ60: 1.248640743
B61: =IF($C$29="","",$B$29) -> 14 | C61: E | D61: SH1114E | E61: =C$29 -> 0 | F61: =D$29 -> 0 | G61: =E$29 -> 1.525 | Q61: =AI$40+1*$D$4*AI$41 -> 1.525 | R61: 51.98323764 | S61: =AJ$40+1*$D$4*AJ$41 -> 1.525 | T61: 59.95671841 | U61: =AK$40+1*$D$4*AK$41 -> 1.525 | V61: 61.44661747 | AA61: =AI$40+0.5*$D$4*AI$41 -> 0.7625 | AB61: 57.84274849 | AC61: 56.64637975 | AD61: 55.13508283 | AE61: 53.30885773 | AF61: 51.16770445 | AH61: 15 | AI61: 2.354545834
B62: =IF($C$30="","",$B$30) -> 15 | C62: A | D62: SH1115A | E62: =C$30 -> 0 | F62: =D$30 -> 0 | G62: =E$30 -> 0 | Q62: Min 1&2 | R62: =ROUND(MIN(AB42:AF46),3-LOG(MIN(AB42:AF46))) -> 40.9 | S62: Min 1&3 | T62: =ROUND(MIN(AB58:AF62),3-LOG(MIN(AB58:AF62))) -> 48.4 | U62: Min 2&3 | V62: =ROUND(MIN(AB50:AF54),3-LOG(MIN(AB50:AF54))) -> 50.5 | AA62: =AI$40+1*$D$4*AI$41 -> 1.525 | AB62: 59.23001501 | AC62: 56.98711503 | AD62: 54.42928686 | AE62: 51.55653051 | AF62: 48.36884598 | AH62: 16 | AI62: 2.354545834
B63: =IF($C$31="","",$B$31) -> 16 | C63: A | D63: SH1116A | E63: =C$31 -> 0 | F63: =D$31 -> 0 | G63: =E$31 -> 0 | Q63: Max 1&2 | R63: =ROUND(MAX(AB42:AF46),3-LOG(MAX(AB42:AF46))) -> 60.5 | S63: Max 1&3 | T63: =ROUND(MAX(AB58:AF62),3-LOG(MAX(AB58:AF62))) -> 61.5 | U63: Max 2&3 | V63: =ROUND(MAX(AB50:AF54),3-LOG(MAX(AB50:AF54))) -> 63 | AH63: 17 | AI63: =IF(H32="",NA(),IF(AK22=2,NA(),I32)) -> 2.354545834 | AJ63: =IF(H32="",NA(),IF(AK22=1,NA(),I32)) -> 
B64: =IF($C$32="","",$B$32) -> 17 | C64: A | D64: SH1117A | E64: =C$32 -> 0 | F64: =D$32 -> 0 | G64: =E$32 -> 0 | AH64: 18 | AI64: =IF(H33="",NA(),IF(AK23=2,NA(),I33)) ->  | AJ64: =IF(H33="",NA(),IF(AK23=1,NA(),I33)) -> -9.111921528
B65: =IF($C$33="","",$B$33) -> 18 | C65: E | D65: SH1118E | E65: =C$33 -> 0 | F65: =D$33 -> 0 | G65: =E$33 -> 0 | Q65: Target | R65: Max | AH65: 19
B66: =IF($C$34="","",B34) ->  | C66: E | E66: =C$34 ->  | F66: =D$34 ->  | G66: =E$34 ->  | Q66: IF… | R66: =IF(SUM(K16:K26)<>R68,_xlfn.TEXTSPLIT("-Not updated",,"-",FALSE),_xlfn.TEXTSPLIT("-"&R65,,"-",FALSE)) ->  | AH66: 20
B67: =IF($C$35="","",$B$35) ->  | C67: E | E67: =C$35 ->  | F67: =D$35 ->  | G67: =E$35 ->  | Q67: Result | R67: Not updated
Q68: Checksum | R68: 61.33646492

Sheet Box_Behnken
A1: =Input!A1 -> Response_Surface_1.3.xlsm | N1: =Input!$I$1 -> Author: Bo Svensmark, svensmark@plen.ku.dk, Analytical Chemistry,ECP, PLEN, University of Copenhagen 2024
N2: The sheet is protected. To unprotect all cells: Review -> Unprotect Sheet
B3: Table 1: Design parameters | F3: WHITE cells for user input
B4: No of centre points | D4: 4 | E4: =IF(OR(D4<2,D4>6),"ERROR:","") ->  | F4: =IF(OR(C3<2,C3>6),"No must be 2 - 6","2 to 6 center points") -> No must be 2 - 6 | Z4: Deaign matrix | AA4: Table 2: Factor levels to run | AL4: 1) Enter Design parameters in Table 1 and 2
Z5: Run # | AA5: 1 | AB5: 2 | AC5: 3 | AD5: 1^2 | AE5: 2^2 | AF5: 3^2 | AG5: 12 | AH5: 13 | AI5: 23 | AJ5: Day | AM5: Center is calcuated as the mean of High and Low
Z6: 1 | AA6: =(C16-C$13) -> -1 | AB6: =(D16-D$13) -> -1 | AC6: =(E16-E$13) -> 0 | AD6: =AA6^2 -> 1 | AE6: 1 | AF6: 0 | AG6: =AA6*AB6 -> 1 | AH6: =AA6*AC6 -> 0 | AI6: =AB6*AC6 -> 0 | AJ6: =IF(C48="",0,IF(CODE(UPPER(C48))>68,2,1)) -> 1 | AL6: 2) Enter Run parameters and groups in Table 3
Z7: 2 | AA7: 1 | AB7: -1 | AC7: 0 | AD7: 1 | AE7: 1 | AF7: 0 | AG7: =AA7*AB7 -> -1 | AH7: =AA7*AC7 -> 0 | AI7: =AB7*AC7 -> 0 | AJ7: =IF(C49="",0,IF(CODE(UPPER(C49))>68,2,1)) -> 1 | AL7: 3) Press Copy Table 3 to Runs to create a sheet for experiments to run
B8: Table 2: | C8: Factor levels | F8: See AL4 for instructions | Z8: 3 | AA8: -1 | AB8: 1 | AC8: 0 | AD8: 1 | AE8: 1 | AF8: 0 | AG8: -1 | AH8: 0 | AI8: 0 | AJ8: 1 | AL8: 4) Run the experiments and enter results in Table 4 or in Sheet Input *)
B9: Factor: | C9: 1 | D9: 2 | E9: 3 | Z9: 4 | AA9: 1 | AB9: 1 | AC9: 0 | AD9: 1 | AE9: 1 | AF9: 0 | AG9: 1 | AH9: 0 | AI9: 0 | AJ9: 1 | AL9: 5) Coefficients for the model can then be seen in Table 5
B10: Name | C10: Temp | D10: Vol | E10: Time | G10: Saved? | H10: Yes | Z10: 5 | AA10: -1 | AB10: 0 | AC10: -1 | AD10: 1 | AE10: 0 | AF10: 1 | AG10: 0 | AH10: 1 | AI10: 0 | AJ10: 1 | AL10: 6) Go to Table 6 to find the optimum settings
B11: Unit | C11: Degree | D11: ml | E11: min | G11: Output # | H11: 1 | Z11: 6 | AA11: 1 | AB11: 0 | AC11: -1 | AD11: 1 | AE11: 0 | AF11: 1 | AG11: 0 | AH11: -1 | AI11: 0 | AJ11: 1
B12: Low | C12: -1 | D12: -1 | E12: -1 | Z12: 7 | AA12: -1 | AB12: 0 | AC12: 1 | AD12: 1 | AE12: 0 | AF12: 1 | AG12: 0 | AH12: -1 | AI12: 0 | AJ12: 1 | AL12: *) For results in Sheet Input:
B13: Center | C13: =(C14+C12)/2 -> 0 | D13: =(D14+D12)/2 -> 0 | E13: =(E14+E12)/2 -> 0 | F13: Analyte: | G13: Rel.Area: | H13: 100 | J13: Comment: | Z13: 8 | AA13: 1 | AB13: 0 | AC13: 1 | AD13: 1 | AE13: 0 | AF13: 1 | AG13: 0 | AH13: 1 | AI13: 0 | AJ13: 1 | AL13: 1) Follow the instructions in Sheet Input for the data
B14: High | C14: 1 | D14: 1 | E14: 1 | F14: B&B test | J14: =IF($K$35="Not updated","Please press Maximum or Minimum","") -> Please press Maximum or Minimum | Z14: 9 | AA14: 0 | AB14: -1 | AC14: -1 | AD14: 0 | AE14: 1 | AF14: 1 | AG14: 0 | AH14: 0 | AI14: 1 | AJ14: 2 | AL14: 2) Press the button Start to load data for the first dataset to analyze
B15: Run # | C15: =C10 -> Temp | D15: =D10 -> Vol | E15: =E10 -> Time | F15: Table 4: Responses | H15: Mean | I15: Residuals | J15: Table 5: Coefficients | L15: SE | M15: P | Z15: 10 | AA15: 0 | AB15: 1 | AC15: -1 | AD15: 0 | AE15: 1 | AF15: 1 | AG15: 0 | AH15: 0 | AI15: -1 | AJ15: 2 | AL15: 3) Press Save results or Save results and load next analyte
B16: 1 | C16: =C$12 -> -1 | D16: =D$12 -> -1 | E16: =E$13 -> 0 | F16: 56.59503599 | H16: =AVERAGE(F16:G16) -> 56.59503599 | I16: =IF(C16="","",H16-($K$16+(C16-$C$13)*($K$17+(C16-$C$13)*$K$20+(D16-$D$13)*($K$23+(E16-$E$13)*$K$26)+(E16-$E$13)*$K$24)+(D16-$D$13)*($K$18+(D16-$D$13)*$K$21+(E16-$E$13)*$K$25)+(E16-$E$13)*($K$19+(E16-$E$13)*$K$22))) -> -0.2725908533 | J16: Const | K16: =VLOOKUP($D$4,$Z$29:$AJ$38,11,FALSE) -> 59.42664614 | L16: =VLOOKUP($D$4&"s",$Z$29:$AJ$38,11,FALSE) -> 0.2931556991 | M16: =IF(L16=0,"na",_xlfn.T.DIST.2T(ABS(K16/L16),COUNT($C$16:$C$35)-10)) -> 9.723890376e-13 | Z16: 11 | AA16: 0 | AB16: -1 | AC16: 1 | AD16: 0 | AE16: 1 | AF16: 1 | AG16: 0 | AH16: 0 | AI16: -1 | AJ16: 2 | AL16: 4) The optimizer will automatically find the maximum
B17: 2 | C17: =C$14 -> 1 | D17: =D$12 -> -1 | E17: =E$13 -> 0 | F17: 48.95580244 | H17: =AVERAGE(F17:G17) -> 48.95580244 | I17: -0.4063249803 | J17: 1 | K17: =VLOOKUP($D$4,$Z$29:$AJ$38,10,FALSE) -> -2.281755494 | L17: =VLOOKUP($D$4&"s",$Z$29:$AJ$38,10,FALSE) -> 0.2072923828 | M17: =IF(L17=0,"na",_xlfn.T.DIST.2T(ABS(K17/L17),COUNT($C$16:$C$35)-10)) -> 3.342375641e-05 | Z17: 12 | AA17: 0 | AB17: 1 | AC17: 1 | AD17: 0 | AE17: 1 | AF17: 1 | AG17: 0 | AH17: 0 | AI17: 1 | AJ17: 2 | AL17: 5) If you want to find the Minimum press this button
B18: 3 | C18: =C$12 -> -1 | D18: =D$14 -> 1 | E18: =E$13 -> 0 | F18: 59.16989148 | H18: 59.16989148 | I18: 0.4063249803 | J18: 2 | K18: =VLOOKUP($D$4,$Z$29:$AJ$38,9,FALSE) -> 2.418964043 | L18: =VLOOKUP($D$4&"s",$Z$29:$AJ$38,9,FALSE) -> 0.2072923828 | M18: 2.386958259e-05 | Z18: 13 | AA18: 0 | AB18: 0 | AC18: 0 | AD18: 0 | AE18: 0 | AF18: 0 | AG18: 0 | AH18: 0 | AI18: 0 | AJ18: 1
B19: 4 | C19: =C$14 -> 1 | D19: =D$14 -> 1 | E19: =E$13 -> 0 | F19: 57.41463479 | H19: 57.41463479 | I19: 0.2725908533 | J19: 3 | K19: =VLOOKUP($D$4,$Z$29:$AJ$38,8,FALSE) -> -1.729966924 | L19: =VLOOKUP($D$4&"s",$Z$29:$AJ$38,8,FALSE) -> 0.2072923828 | M19: 0.0001607944349 | Z19: 14 | AA19: 0 | AB19: 0 | AC19: 0 | AD19: 0 | AE19: 0 | AF19: 0 | AG19: 0 | AH19: 0 | AI19: 0 | AJ19: 1
B20: 5 | C20: =C$12 -> -1 | D20: =D$13 -> 0 | E20: =E$12 -> -1 | F20: 57.49594331 | H20: 57.49594331 | I20: -0.03719198138 | J20: 1^2 | K20: =VLOOKUP($D$4,$Z$29:$AJ$38,7,FALSE) -> -1.69426653 | L20: =VLOOKUP($D$4&"s",$Z$29:$AJ$38,7,FALSE) -> 0.2931556991 | M20: 0.001172935982 | Z20: 15 | AA20: =IF(C30="","",C30-C$13) -> 0 | AB20: 0 | AC20: 0 | AD20: =IF(AA20="","",AA20^2) -> 0 | AE20: 0 | AF20: 0 | AG20: =IF(AA20="","",AA20*AB20) -> 0 | AH20: =IF(AA20="","",AA20*AC20) -> 0 | AI20: =IF(AB20="","",AB20*AC20) -> 0 | AJ20: 2
B21: 6 | C21: =C$14 -> 1 | D21: =D$13 -> 0 | E21: =E$12 -> -1 | F21: 58.77906225 | H21: 58.77906225 | I21: 0.09654214569 | J21: 2^2 | K21: =VLOOKUP($D$4,$Z$29:$AJ$38,6,FALSE) -> -2.198538431 | L21: =VLOOKUP($D$4&"s",$Z$29:$AJ$38,6,FALSE) -> 0.2931556991 | M21: 0.0002906596302 | Z21: 16 | AA21: 0 | AB21: 0 | AC21: 0 | AD21: 0 | AE21: 0 | AF21: 0 | AG21: =IF(AA21="","",AA21*AB21) -> 0 | AH21: =IF(AA21="","",AA21*AC21) -> 0 | AI21: =IF(AB21="","",AB21*AC21) -> 0 | AJ21: 2
B22: 7 | C22: =C$12 -> -1 | D22: =D$13 -> 0 | E22: =E$14 -> 1 | F22: 59.6895551 | H22: 59.6895551 | I22: -0.09654214569 | J22: 3^2 | K22: =VLOOKUP($D$4,$Z$29:$AJ$38,5,FALSE) -> -1.354518838 | L22: =VLOOKUP($D$4&"s",$Z$29:$AJ$38,5,FALSE) -> 0.2931556991 | M22: 0.003613552431 | Z22: 17 | AA22: =IF( C32="","",(C32-C$13)) ->  | AB22: =IF( D32="","",(D32-D$13)) ->  | AJ22: 2
B23: 8 | C23: =C$14 -> 1 | D23: =D$13 -> 0 | E23: =E$14 -> 1 | F23: 49.54688243 | H23: 49.54688243 | I23: 0.03719198138 | J23: 12 | K23: =VLOOKUP($D$4,$Z$29:$AJ$38,4,FALSE) -> 1.470994215 | L23: =VLOOKUP($D$4&"s",$Z$29:$AJ$38,4,FALSE) -> 0.2931556991 | M23: 0.002409333337 | Z23: 18 | AA23: =IF( C33="","",(C33-C$13)) ->  | AJ23: 2
B24: 9 | C24: =C$13 -> 0 | D24: =D$12 -> -1 | E24: =E$12 -> -1 | F24: 58.11253846 | H24: 58.11253846 | I24: 0.3097828347 | J24: 13 | K24: =VLOOKUP($D$4,$Z$29:$AJ$38,3,FALSE) -> -2.856447901 | L24: =VLOOKUP($D$4&"s",$Z$29:$AJ$38,3,FALSE) -> 0.2931556991 | M24: 6.714617816e-05
B25: 10 | C25: =C$13 -> 0 | D25: =D$14 -> 1 | E25: =E$12 -> -1 | F25: 57.03522296 | H25: 57.03522296 | I25: -0.369132999 | J25: 23 | K25: =VLOOKUP($D$4,$Z$29:$AJ$38,2,FALSE) -> 2.618163874 | L25: =VLOOKUP($D$4&"s",$Z$29:$AJ$38,2,FALSE) -> 0.2931556991 | M25: 0.000109939335
B26: 11 | C26: =C$13 -> 0 | D26: =D$12 -> -1 | E26: =E$14 -> 1 | F26: 49.47562703 | H26: 49.47562703 | I26: 0.369132999
B27: 12 | C27: =C$13 -> 0 | D27: =D$14 -> 1 | E27: =E$14 -> 1 | F27: 58.87096703 | H27: 58.87096703 | I27: -0.3097828347 | AA27: Regression coefficients:
B28: 13 | C28: 0 | D28: 0 | E28: 0 | F28: 60.33407316 | H28: 60.33407316 | I28: 0.9074270213 | Z28: Nc | AA28: 23 | AB28: 13 | AC28: 12 | AD28: 3^2 | AE28: 2^2 | AF28: 1^2 | AG28: 3 | AH28: 2 | AI28: 1 | AJ28: Const
B29: 14 | C29: 0 | D29: 0 | E29: 0 | F29: 59.12417046 | H29: 59.12417046 | I29: -0.3024756738 | Z29: 2 | AA29: =LINEST(H16:H29,AA6:AI19,TRUE,TRUE) -> 2.618163874 | AB29: -2.856447901 | AC29: 1.470994215 | AD29: -1.505756675 | AE29: -2.349776267 | AF29: -1.845504367 | AG29: -1.729966924 | AH29: 2.418964043 | AI29: -2.281755494 | AJ29: 59.72912181
B30: 15 | C30: =IF($D$4>2,C13,"") -> 0 | D30: =IF($D$4>2,D13,"") -> 0 | E30: =IF($D$4>2,E13,"") -> 0 | F30: 59.12417046 | H30: =IF(F30="","",AVERAGE(F30:G30)) -> 59.12417046 | I30: -0.3024756738 | J30: Table 6: Optimization and estimation | Z30: 2s | AA30: 0.3256340163 | AB30: 0.3256340163 | AC30: 0.3256340163 | AD30: 0.3640698982 | AE30: 0.3640698982 | AF30: 0.3640698982 | AG30: 0.2302580211 | AH30: 0.2302580211 | AI30: 0.2302580211 | AJ30: 0.4605160423
B31: 16 | C31: =IF($D$4>3,C13,"") -> 0 | D31: =IF($D$4>3,D13,"") -> 0 | E31: =IF($D$4>3,E13,"") -> 0 | F31: 59.12417046 | H31: =IF(F31="","",AVERAGE(F31:G31)) -> 59.12417046 | I31: -0.3024756738 | J31: Factor | K31: Name | L31: Value | M31: Units | Z31: 3 | AA31: =IF(AA20="","",LINEST(H16:H30,AA6:AI20,TRUE,TRUE)) -> 2.618163874 | AB31: -2.856447901 | AC31: 1.470994215 | AD31: -1.40493145 | AE31: -2.248951043 | AF31: -1.744679142 | AG31: -1.729966924 | AH31: 2.418964043 | AI31: -2.281755494 | AJ31: 59.52747136
B32: 17 | C32: =IF($D$4>4,C13,"") ->  | D32: =IF($D$4>4,D13,"") ->  | E32: =IF($D$4>4,E13,"") ->  | H32: =IF(F32="","",AVERAGE(F32:G32)) ->  | J32: 1 | K32: =C10 -> Temp | L32: -1 | M32: =C11 -> Degree | Z32: 3s | AA32: 0.3114945925 | AB32: 0.3114945925 | AC32: 0.3114945925 | AD32: 0.3242138511 | AE32: 0.3242138511 | AF32: 0.3242138511 | AG32: 0.2202599387 | AH32: 0.2202599387 | AI32: 0.2202599387 | AJ32: 0.3596829737
B33: 18 | C33: =IF($D$4>5,C13,"") ->  | D33: =IF($D$4>5,D13,"") ->  | E33: =IF($D$4>5,E13,"") ->  | H33: =IF(F33="","",AVERAGE(F33:G33)) ->  | J33: 2 | K33: =D10 -> Vol | L33: 0.8905514045 | M33: =D11 -> ml | Z33: 4 | AA33: =IF(AA21="","",LINEST(H16:H31,AA6:AI21,TRUE,TRUE)) -> 2.618163874 | AB33: -2.856447901 | AC33: 1.470994215 | AD33: -1.354518838 | AE33: -2.198538431 | AF33: -1.69426653 | AG33: -1.729966924 | AH33: 2.418964043 | AI33: -2.281755494 | AJ33: 59.42664614
J34: 3 | K34: =E10 -> Time | L34: 1 | M34: =E11 -> min | Z34: 4s | AA34: 0.2931556991 | AB34: 0.2931556991 | AC34: 0.2931556991 | AD34: 0.2931556991 | AE34: 0.2931556991 | AF34: 0.2931556991 | AG34: 0.2072923828 | AH34: 0.2072923828 | AI34: 0.2072923828 | AJ34: 0.2931556991
J35: Response | K35: =R67 -> Not updated | L35: =$K$16+($L32-$C$13)*($K$17+($L32-$C$13)*$K$20+(L$33-$D$13)*$K$23+(L$34-$E$13)*$K$24)+(L$33-$D$13)*($K$18+(L$33-$D$13)*$K$21+(L$34-$E$13)*$K$25)+(L$34-$E$13)*($K$19+(L$34-$E$13)*$K$22) -> 61.21830179 | Z35: 5 | AA35: =IF(AA22="","",LINEST(H16:H32,AA6:AI22,TRUE,TRUE)) -> 
Q36: Press the buttons to find the factor levels for Max or Min response | Z36: 5s
Q37: - or enter values for the factors in the white cells in Table 5 | Z37: 6 | AA37: =IF(AA23="","",LINEST(H16:H33,AA6:AI23,TRUE,TRUE)) -> 
Z38: 6s
Q39: OBS: Optimize Max and Min are limited to values in the design
B40: Table 3: Experiments | H40: Comments to the design: | Z40: Graph F1 & F2 | AD40: F1 | AH40: Center | AI40: =C13 -> 0 | AJ40: =D13 -> 0 | AK40: =E13 -> 0
B41: Date: | C41: 2024-09-11 | Q41: The contour and the optimizer plots shows the response with constant value from Table 5: | AB41: =AI$40-1*AI$41 -> -1 | AC41: =AI$40-0.5*AI$41 -> -0.5 | AD41: =AI$40-0*AI$41 -> 0 | AE41: =AI$40+0.5*AI$41 -> 0.5 | AF41: =AI$40+1*AI$41 -> 1 | AH41: Range/2 | AI41: =(C14-C12)/2 -> 1 | AJ41: =(D14-D12)/2 -> 1 | AK41: =(E14-E12)/2 -> 1
B42: Group: | Q42: In the contour plot of F1 & 2, F3 has the value given in Table 5 | AA42: =AJ$40-1*AJ$41 -> -1 | AB42: =$K$16+(AB$41-$C$13)*($K$17+(AB$41-$C$13)*$K$20+($AA42-$D$13)*($K$23+($L$34-$E$13)*$K$26)+($L$34-$E$13)*$K$24)+($AA42-$D$13)*($K$18+($AA42-$D$13)*$K$21+($L$34-$E$13)*$K$25)+($L$34-$E$13)*($K$19+($L$34-$E$13)*$K$22) -> 54.02142511 | AC42: 51.9875262 | AD42: 49.10649403 | AE42: 45.37832859 | AF42: 40.80302989 | AH42: Min | AI42: =C$13-AI41 -> -1 | AJ42: =D$13-AJ41 -> -1 | AK42: =E$13-AK41 -> -1
B43: Method: | C43: TST | Q43: In the optimizer plot, the curve for F1, F2 & F3 has the value given in Table 5 | AA43: =AJ$40-0.5*AJ$41 -> -0.5 | AB43: 57.45339578 | AC43: 55.78724543 | AD43: 53.27396181 | AE43: 49.91354493 | AF43: 45.70599478 | AH43: Max | AI43: =C$13+AI41 -> 1 | AJ43: =D$13+AJ41 -> 1 | AK43: =E$13+AK41 -> 1
B44: Design no: | C44: 1 | Z44: F2 | AA44: =AJ$40-0*AJ$41 -> 0 | AB44: 59.78609724 | AC44: 58.48769544 | AD44: 56.34216038 | AE44: 53.34949205 | AF44: 49.50969045
B45: Free text: | Q45: If you change something, the optimization may be wrong, and two warnings is given: | AA45: =AJ$40+0.5*AJ$41 -> 0.5 | AB45: 61.01952948 | AC45: 60.08887624 | AD45: 58.31108973 | AE45: 55.68616995 | AF45: 52.21411691 | AI45: Day
B46: Design: | C46: Box_B. | R46: Red text in cell J14 | AA46: =AJ$40+1*AJ$41 -> 1 | AB46: 61.15369251 | AC46: 60.59078782 | AD46: 59.18074986 | AE46: 56.92357864 | AF46: 53.81927415 | AH46: Run # | AI46: 1 | AJ46: 2
B47: Run # | C47: Group | D47: Label | E47: =C10 -> Temp | F47: =D10 -> Vol | G47: =E10 -> Time | H47: Constant factors and comments to each run: | R47: The text "Not updated" in Table 6 | AH47: 1 | AI47: =IF(AJ6=1,I16,NA()) -> -0.2725908533 | AJ47: =IF(AJ6=2,I16,NA()) -> 
B48: =IF($C$16="","",$B$16) -> 1 | C48: A | D48: =IF(OR(B48="",C48=""),"",$C$43&TEXT(C$44,"0")&"1"&TEXT(B48,"00")&C48) -> TST1101A | E48: =$C$16 -> -1 | F48: =$D$16 -> -1 | G48: =$E$16 -> 0 | Z48: Graph F2 & F3 | AD48: F3 | AH48: 2 | AI48: =IF(AJ7=1,I17,NA()) -> -0.4063249803 | AJ48: =IF(AJ7=2,I17,NA()) -> 
B49: =IF($C$17="","",$B$17) -> 2 | C49: A | D49: =IF(OR(B49="",C49=""),"",$C$43&TEXT(C$44,"0")&"1"&TEXT(B49,"00")&C49) -> TST1102A | E49: =$C$17 -> 1 | F49: =$D$17 -> -1 | G49: =$E$17 -> 0 | AB49: =AK$40-1*AK$41 -> -1 | AC49: =AK$40-0.5*AK$41 -> -0.5 | AD49: =AK$40-0*AK$41 -> 0 | AE49: =AK$40+0.5*AK$41 -> 0.5 | AF49: =AK$40+1*AK$41 -> 1 | AH49: 3 | AI49: 0.4063249803
B50: =IF($C$18="","",$B$18) -> 3 | C50: A | D50: TST1103A | E50: =$C$18 -> -1 | F50: =$D$18 -> 1 | G50: =$E$18 -> 0 | Q50: Factor: | R50: 1 | S50: Factor: | T50: 2 | U50: Factor: | V50: 3 | W50: Data for Optimizer | AA50: =AJ$40-1*AJ$41 -> -1 | AB50: =$K$16+($L$32-$C$13)*($K$17+($L$32-$C$13)*$K$20+($AA50-$D$13)*($K$23+(AB$49-$E$13)*$K$26)+(AB$49-$E$13)*$K$24)+($AA50-$D$13)*($K$18+($AA50-$D$13)*$K$21+(AB$49-$E$13)*$K$25)+(AB$49-$E$13)*($K$19+(AB$49-$E$13)*$K$22) -> 57.0047909 | AC50: 57.27483858 | AD50: 56.86762684 | AE50: 55.78315569 | AF50: 54.02142511 | AH50: 4 | AI50: 0.2725908533
B51: =IF($C$19="","",$B$19) -> 4 | C51: A | D51: TST1104A | E51: =$C$19 -> 1 | F51: =$D$19 -> 1 | G51: =$E$19 -> 0 | Q51: =AI$40-1*AI$41 -> -1 | R51: =$K$16+($Q51-$C$13)*($K$17+($Q51-$C$13)*$K$20+(L$33-$D$13)*($K$23+(L$34-$E$13)*$K$26)+(L$34-$E$13)*$K$24)+(L$33-$D$13)*($K$18+(L$33-$D$13)*$K$21+(L$34-$E$13)*$K$25)+(L$34-$E$13)*($K$19+(L$34-$E$13)*$K$22) -> 61.21830179 | S51: =AJ$40-1*AJ$41 -> -1 | T51: =$K$16+(L$32-$C$13)*($K$17+(L$32-$C$13)*$K$20+($S51-$D$13)*($K$23+(L$34-$E$13)*$K$26)+(L$34-$E$13)*$K$24)+($S51-$D$13)*($K$18+($S51-$D$13)*$K$21+(L$34-$E$13)*$K$25)+(L$34-$E$13)*($K$19+(L$34-$E$13)*$K$22) -> 54.02142511 | U51: =AK$40-1*AK$41 -> -1 | V51: =$K$16+(L$32-$C$13)*($K$17+(L$32-$C$13)*$K$20+(L$33-$D$13)*($K$23+($U51-$E$13)*$K$26)+($U51-$E$13)*$K$24)+(L$33-$D$13)*($K$18+(L$33-$D$13)*$K$21+($U51-$E$13)*$K$25)+($U51-$E$13)*($K$19+($U51-$E$13)*$K$22) -> 54.30212081 | W51: =MIN(0,MIN(R51:R61,T51:T61,V51:V61)) -> 0 | X51: =MAX(R51:R61,T51:T61,V51:V61) -> 61.23193961 | AA51: =AJ$40-0.5*AJ$41 -> -0.5 | AB51: 57.8185977 | AC51: 58.74318635 | AD51: 58.99051558 | AE51: 58.56058539 | AF51: 57.45339578 | AH51: 5 | AI51: -0.03719198138
B52: =IF($C$20="","",$B$20) -> 5 | C52: A | D52: TST1105A | E52: =$C$20 -> -1 | F52: =$D$20 -> 0 | G52: =$E$20 -> -1 | Q52: =AI$40-0.8*AI$41 -> -0.8 | R52: 61.06259626 | S52: =AJ$40-0.8*AJ$41 -> -0.8 | T52: 55.52612568 | U52: =AK$40-0.8*AK$41 -> -0.8 | V52: 55.48136569 | W52: X | X52: Y | Z52: F2 | AA52: =AJ$40-0*AJ$41 -> 0 | AB52: 57.53313529 | AC52: 59.11226491 | AD52: 60.0141351 | AE52: 60.23874588 | AF52: 59.78609724 | AH52: 6 | AI52: 0.09654214569
B53: =IF($C$21="","",$B$21) -> 6 | C53: A | D53: TST1106A | E53: =$C$21 -> 1 | F53: =$D$21 -> 0 | G53: =$E$21 -> -1 | Q53: =AI$40-0.6*AI$41 -> -0.6 | R53: 60.7713494 | S53: =AJ$40-0.6*AJ$41 -> -0.6 | T53: 56.85494318 | U53: =AK$40-0.6*AK$41 -> -0.6 | V53: 56.55224906 | W53: =L32 -> -1 | X53: =$W$51 -> 0 | AA53: =AJ$40+0.5*AJ$41 -> 0.5 | AB53: 56.14840366 | AC53: 58.38207424 | AD53: 59.93848541 | AE53: 60.81763716 | AF53: 61.01952948 | AH53: 7 | AI53: -0.09654214569
B54: =IF($C$22="","",$B$22) -> 7 | C54: A | D54: TST1107A | E54: =$C$22 -> -1 | F54: =$D$22 -> 0 | G54: =$E$22 -> 1 | Q54: =AI$40-0.4*AI$41 -> -0.4 | R54: 60.34456122 | S54: =AJ$40-0.4*AJ$41 -> -0.4 | T54: 58.00787761 | U54: =AK$40-0.4*AK$41 -> -0.4 | V54: 57.51477093 | W54: =L32 -> -1 | X54: =$X$51 -> 61.23193961 | AA54: =AJ$40+1*AJ$41 -> 1 | AB54: 53.66440281 | AC54: 56.55261437 | AD54: 58.7635665 | AE54: 60.29725922 | AF54: 61.15369251 | AH54: 8 | AI54: 0.03719198138
B55: =IF($C$23="","",$B$23) -> 8 | C55: A | D55: TST1108A | E55: =$C$23 -> 1 | F55: =$D$23 -> 0 | G55: =$E$23 -> 1 | Q55: =AI$40-0.2*AI$41 -> -0.2 | R55: 59.78223172 | S55: =AJ$40-0.2*AJ$41 -> -0.2 | T55: 58.98492896 | U55: =AK$40-0.2*AK$41 -> -0.2 | V55: 58.36893129 | W55: =(L33-S51)*AI41/AJ41+Q51 -> 0.8905514045 | X55: =$W$51 -> 0 | AH55: 9 | AJ55: 0.3097828347
B56: =IF($C$24="","",$B$24) -> 9 | C56: E | D56: TST1109E | E56: =$C$24 -> 0 | F56: =$D$24 -> -1 | G56: =$E$24 -> -1 | Q56: =AI$40 -> 0 | R56: 59.08436089 | S56: =AJ$40 -> 0 | T56: 59.78609724 | U56: =AK$40 -> 0 | V56: 59.11473014 | W56: =W55 -> 0.8905514045 | X56: =$X$51 -> 61.23193961 | Z56: Graph F1 & F3 | AD56: F3 | AH56: 10 | AJ56: -0.369132999
B57: =IF($C$25="","",$B$25) -> 10 | C57: E | D57: TST1110E | E57: =$C$25 -> 0 | F57: =$D$25 -> 1 | G57: =$E$25 -> -1 | Q57: =AI$40+0.2*AI$41 -> 0.2 | R57: 58.25094874 | S57: =AJ$40+0.2*AJ$41 -> 0.2 | T57: 60.41138244 | U57: =AK$40+0.2*AK$41 -> 0.2 | V57: 59.75216748 | W57: =(L34-U51)*AI41/AK41+Q51 -> 1 | X57: =$W$51 -> 0 | AB57: =AK$40-1*AK$41 -> -1 | AC57: =AK$40-0.5*AK$41 -> -0.5 | AD57: =AK$40-0*AK$41 -> 0 | AE57: =AK$40+0.5*AK$41 -> 0.5 | AF57: =AK$40+1*AK$41 -> 1 | AH57: 11 | AJ57: 0.369132999
B58: =IF($C$26="","",$B$26) -> 11 | C58: E | D58: TST1111E | E58: =$C$26 -> 0 | F58: =$D$26 -> -1 | G58: =$E$26 -> 1 | Q58: =AI$40+0.4*AI$41 -> 0.4 | R58: 57.28199527 | S58: =AJ$40+0.4*AJ$41 -> 0.4 | T58: 60.86078457 | U58: =AK$40+0.4*AK$41 -> 0.4 | V58: 60.28124332 | W58: =W57 -> 1 | X58: =$X$51 -> 61.23193961 | AA58: =AI$40-1*AI$41 -> -1 | AB58: =$K$16+($AA58-$C$13)*($K$17+($AA58-$C$13)*$K$20+($L$33-$D$13)*($K$23+(AB$57-$E$13)*$K$26)+(AB$57-$E$13)*$K$24)+($L$33-$D$13)*($K$18+($L$33-$D$13)*$K$21+(AB$57-$E$13)*$K$25)+(AB$57-$E$13)*($K$19+(AB$57-$E$13)*$K$22) -> 54.30212081 | AC58: 57.04705518 | AD58: 59.11473014 | AE58: 60.50514568 | AF58: 61.21830179 | AH58: 12 | AJ58: -0.3097828347
B59: =IF($C$27="","",$B$27) -> 12 | C59: E | D59: TST1112E | E59: =$C$27 -> 0 | F59: =$D$27 -> 1 | G59: =$E$27 -> 1 | Q59: =AI$40+0.6*AI$41 -> 0.6 | R59: 56.17750048 | S59: =AJ$40+0.6*AJ$41 -> 0.6 | T59: 61.13430363 | U59: =AK$40+0.6*AK$41 -> 0.6 | V59: 60.70195765 | W59: =AA58 -> -1 | X59: =$L$35 -> 61.21830179 | AA59: =AI$40-0.5*AI$41 -> -0.5 | AB59: 56.51516489 | AC59: 58.54598729 | AD59: 59.89955027 | AE59: 60.57585383 | AF59: 60.57489797 | AH59: 13 | AI59: 0.9074270213
B60: =IF($C$28="","",$B$28) -> 13 | C60: A | D60: TST1113A | E60: =$C$28 -> 0 | F60: =$D$28 -> 0 | G60: =$E$28 -> 0 | Q60: =AI$40+0.8*AI$41 -> 0.8 | R60: 54.93746437 | S60: =AJ$40+0.8*AJ$41 -> 0.8 | T60: 61.23193961 | U60: =AK$40+0.8*AK$41 -> 0.8 | V60: 61.01431048 | W60: =AA62 -> 1 | X60: =$L$35 -> 61.21830179 | Z60: F1 | AA60: =AI$40-0*AI$41 -> 0 | AB60: 57.88107571 | AC60: 59.19778613 | AD60: 59.83723714 | AE60: 59.79942873 | AF60: 59.08436089 | AH60: 14 | AI60: -0.3024756738
B61: =IF($C$29="","",$B$29) -> 14 | C61: A | D61: TST1114A | E61: =$C$29 -> 0 | F61: =$D$29 -> 0 | G61: =$E$29 -> 0 | Q61: =AI$40+1*AI$41 -> 1 | R61: 53.56188693 | S61: =AJ$40+1*AJ$41 -> 1 | T61: 61.15369251 | U61: =AK$40+1*AK$41 -> 1 | V61: 61.21830179 | AA61: =AI$40+0.5*AI$41 -> 0.5 | AB61: 58.39985326 | AC61: 59.00245171 | AD61: 58.92779074 | AE61: 58.17587035 | AF61: 56.74669054 | AH61: 15 | AI61: =IF(H30="",NA(),IF(AJ20=1,I30,NA())) ->  | AJ61: =IF(H30="",NA(),IF(AJ20=2,I30,NA())) -> -0.3024756738
B62: =IF($C$30="","",$B$30) -> 15 | C62: E | D62: TST1115E | E62: =$C$30 -> 0 | F62: =$D$30 -> 0 | G62: =$E$30 -> 0 | Q62: Min 1&2 | R62: =MIN(AB42:AF46) -> 40.80302989 | S62: Min 1&3 | T62: =MIN(AB58:AF62) -> 53.56188693 | U62: Min 2&3 | V62: =MIN(AB50:AF54) -> 53.66440281 | AA62: =AI$40+1*AI$41 -> 1 | AB62: 58.07149755 | AC62: 57.95998402 | AD62: 57.17121108 | AE62: 55.70517871 | AF62: 53.56188693 | AH62: 16 | AI62: =IF(H31="",NA(),IF(AJ21=1,I31,NA())) ->  | AJ62: =IF(H31="",NA(),IF(AJ21=2,I31,NA())) -> -0.3024756738
B63: =IF($C$31="","",$B$31) -> 16 | C63: E | D63: TST1116E | E63: =$C$31 -> 0 | F63: =$D$31 -> 0 | G63: =$E$31 -> 0 | Q63: Max 1&2 | R63: =MAX(AB42:AF46) -> 61.15369251 | S63: Max 1&3 | T63: =MAX(AB58:AF62) -> 61.21830179 | U63: Max 2&3 | V63: =MAX(AB50:AF54) -> 61.15369251 | AH63: 17
B64: =IF($C$32="","",$B$32) ->  | C64: E | E64: =$C$32 ->  | F64: =$D$32 ->  | G64: =$E$32 ->  | AH64: 18
B65: =IF($C$33="","",$B$33) ->  | C65: E | E65: =$C$33 ->  | F65: =$D$33 ->  | G65: =$E$33 ->  | Q65: Target | R65: Max
Q66: IF… | R66: =IF(SUM(K16:K26)<>R68,_xlfn.TEXTSPLIT("-Not updated",,"-",FALSE),_xlfn.TEXTSPLIT("-"&R65,,"-",FALSE)) -> 
Q67: Result | R67: Not updated
Q68: Checksum | R68: 54.01560718

Sheet Output
A1: =Input!A1 -> Response_Surface_1.3.xlsm | N1: =Input!$I$1 -> Author: Bo Svensmark, svensmark@plen.ku.dk, Analytical Chemistry,ECP, PLEN, University of Copenhagen 2024
N2: The sheet is protected. To unprotect all cells: Review -> Unprotect Sheet
A20: Date: | I20: 1 | J20: 2 | K20: 3 | L20: 4 | M20: 5 | N20: 6 | O20: 7 | P20: 8 | Q20: 9 | R20: 10 | S20: 11 | T20: 12 | U20: 13 | V20: 14 | W20: 15 | X20: 16 | Y20: 17 | Z20: 18 | AA20: 19 | AB20: 20 | AC20: 21 | AD20: 22 | AE20: 23 | AF20: 24 | AG20: 25 | AH20: 26
A21: Group: | B21: 2024-09-11 | E21: Name | F21: Units | G21: Low | H21: High | I21: first | J21: first | K21: first | L21: first | M21: first | N21: first | O21: first
A22: Method: | B22: Bo | D22: Analyte | I22: Mean | J22: Butyrolactone | K22: Phenylethyl alcohol | L22: Ethyl hydrogen succinate | M22: Diethyl succinate | N22: Tyrosol | O22: Acetyl-1-tyrosol
A23: Design no: | B23: TST | D23: Rel. Area | J23: 100 | K23: 13.42114678 | L23: 1.44778332 | M23: 7.099574331 | N23: 35.45651118 | O23: 0.07262084692
A24: Free text: | B24: 1 | D24: F1 | E24: C18e | F24: mg | G24: 0 | H24: 100 | I24: 25.86355712 | J24: 45.88176049 | K24: 0 | L24: 0 | M24: 0 | N24: 36.38375614 | O24: 59.22165513
A25: Design: | D25: F2 | E25: PSA | F25: mg | G25: 0 | H25: 100 | I25: 0 | J25: 51.5707741 | K25: 100 | L25: 0 | M25: 88.20434092 | N25: 14.86895481 | O25: 0
A26: a: | B26: 1 | D26: F3
A27: No centre: | B27: 2 | D27: Response | I27: 70.36110389 | J27: 93.7236843 | K27: 91.56636273 | L27: 78.49185673 | M27: 87.56962599 | N27: 84.04013565 | O27: 54.45685385
D28: Target | I28: PSA | J28: PSA | K28: PSA | L28: PSA | M28: PSA | N28: PSA | O28: PSA
D29: Blocks | I29: 1 | J29: 1 | K29: 1 | L29: 1 | M29: 1 | N29: 1 | O29: 1
D30: Const | I30: 61.18835079 | J30: 93.66920841 | K30: 85.57059359 | L30: -9.682953203 | M30: 83.77675331 | N30: 82.04260851 | O30: 31.75389413
D31: 1 | I31: -0.02539087395 | J31: -0.02451864186 | K31: -0.03570571807 | L31: -0.2147955172 | M31: -0.0466880454 | N31: -0.05304207057 | O31: 0.2224047494
D32: 2 | I32: -0.09563687173 | J32: 0.00507914607 | K32: 0.07771994622 | L32: -0.4518711495 | M32: 0.03655840216 | N32: -0.09316035573 | O32: -0.1481472196
D33: 1^2 | I33: -0.001761821234 | J33: -0.003110030142 | K33: 0.0007095593924 | L33: 0.007746362562 | M33: 0.0002098320892 | N33: -0.004067820965 | O33: -0.01205883034
D34: 2^2 | I34: 0.001345811625 | J34: -0.002532114531 | K34: -0.0005632128156 | L34: 0.007746362562 | M34: -0.000639838534 | N34: -0.001644378449 | O34: 0.005708051516
D35: 12 | I35: 0.001193146424 | J35: -0.0006983356124 | K35: 1.655220397e-05 | L35: 0.006443865516 | M35: -0.0002466163361 | N35: 0.001643412775 | O35: -6.867849594e-19
D36: Block | I36: 0 | J36: 0 | K36: 0 | L36: 0 | M36: 0 | N36: 0 | O36: 0
D42: =IF(D30="","","P("&D30&")") -> P(Const) | I42: 0.0005867226441 | J42: 3.906144396e-05 | K42: 0.0002257996853 | L42: 0.3802169537 | M42: 0.0003553154603 | N42: 0.001011467948 | O42: 0.2049005103
D43: P(1) | I43: 0.7788644614 | J43: 0.7248604361 | K43: 0.7191969276 | L43: 0.1848695623 | M43: 0.6700766728 | N43: 0.7053672125 | O43: 0.4813520804
D44: P(2) | I44: 0.3211434206 | J44: 0.9413975676 | K44: 0.4481617329 | L44: 0.02815393039 | M44: 0.7374631257 | N44: 0.5149654676 | O44: 0.6327108241
D45: P(1^2) | I45: 0.5512232816 | J45: 0.2095533558 | K45: 0.8227546674 | L45: 0.1463954193 | M45: 0.9518010527 | N45: 0.3863573493 | O45: 0.2600452603
D46: P(2^2) | I46: 0.6456505114 | J46: 0.2907896407 | K46: 0.858699115 | L46: 0.1463954193 | M46: 0.8540679553 | N46: 0.7145845865 | O46: 0.5684881921
D47: P(12) | I47: 0.5953384424 | J47: 0.6832384858 | K47: 0.9945221983 | L47: 0.1216275645 | M47: 0.9259170707 | N47: 0.6344499268 | O47: 1
D48: P(Block)
D49: =IF(D37="","","P("&D37&")") -> 
D50: =IF(D38="","","P("&D38&")") -> 
D51: =IF(D39="","","P("&D39&")") -> 
D52: =IF(D40="","","P("&D40&")") -> 

Sheet Runs
A1: ='2 factors'!A1 -> Response_Surface_1.3.xlsm | N1: =Input!$I$1 -> Author: Bo Svensmark, svensmark@plen.ku.dk, Analytical Chemistry,ECP, PLEN, University of Copenhagen 2024
N2: Ony white cells are unprotected. To unprotect all cells: Review -> Unprotect Sheet
A6: Table 3: Experiments | G6: Comments to the design:
A7: Date: | B7: 2024-09-11 | G7: 1 | J7: 2
A8: Group: | B8: Bo
A9: Method: | B9: TST | J9: Dette er en lang tekst
A10: Design no: | B10: 1
A11: Free text:
A12: Design: | B12: 2 factors | G12: 3 | J12: 4
A13: Run # | B13: Group | C13: Label | D13: Temp | E13: Vol | F13: Time | G13: Constant factors and comments to each run:
A14: 1 | B14: A | C14: TST1101A | D14: 0 | E14: 0 | G14: 5 | N14: 6
A15: 2 | B15: A | C15: TST1102A | D15: 100 | E15: 0
A16: 3 | B16: A | C16: TST1103A | D16: 0 | E16: 100
A17: 4 | B17: A | C17: TST1104A | D17: 100 | E17: 100
A18: 5 | B18: E | C18: TST1105E | D18: 0 | E18: 50
A19: 6 | B19: E | C19: TST1106E | D19: 100 | E19: 50
A20: 7 | B20: E | C20: TST1107E | D20: 50 | E20: 0
A21: 8 | B21: E | C21: TST1108E | D21: 50 | E21: 100
A22: 9 | B22: A | C22: TST1109A | D22: 50 | E22: 50
A23: 10 | B23: A | C23: TST1110A | D23: 50 | E23: 50
B24: A | C24: TST11A
B25: E | C25: TST11E
B26: E | C26: TST11E
B27: E | C27: TST11E | G27: 7 | N27: 8
A34: 21
A35: 22
A36: 23
A37: 24
A38: 25
A39: 26
A40: 27 | C40: =IF(B40="","",$B$9&TEXT(B$10,"0")&"1"&TEXT(A40,"00")&B40) -> 
A41: 28 | C41: =IF(B41="","",$B$9&TEXT(B$10,"0")&"1"&TEXT(A41,"00")&B41) -> 
A42: 29
A43: 30
A44: 31
A45: 32
A47: Run 21-26 are EXTRA RUNS, where all factors must be entered manually.
A48: Remember to assign groups to the runs in cells B34:B39
A49: Labels will be generated automatically
